Workbook

Sheet Sheet1 (hidden)
A1: ddConsortia | B1: ddMember_range | C1: Consortium | D1: Consortium_Member | E1: Key | F1: Count | G1: Member Name | H1: 15_16_member_allocation | J1: 16_17_member_allocation | M1: Consortium Name | N1: Consortium Short Name
A2: 01 Allan Hancock | B2: =ADDRESS(MATCH(1,F:F,0),COLUMN(G1))&":"&ADDRESS(MATCH(MAX(F:F),F:F,0),COLUMN(G1)) -> $G$138:$G$148 | C2: 00 - XYZ Adult Education Consortium | D2: =C2&G2 -> 00 - XYZ Adult Education ConsortiumDr. Rufus T. Barleysheath Community College District | E2: 455_Dr. Rufus T. Barleysheath Community College District | F2: =IF(SUMMARY!$B$4=C2,MAX($F$1:F1)+1,"n/a") -> n/a | G2: Dr. Rufus T. Barleysheath Community College District | H2: 100000 | J2: 90000 | M2: 01 Allan Hancock | N2: 01 Allan Hancock
A3: 02 Antelope Valley | B3: member_key | C3: 00 - XYZ Adult Education Consortium | D3: 00 - XYZ Adult Education ConsortiumHappytown Unified School District | E3: 454_Happytown Unified School District | F3: =IF(SUMMARY!$B$4=C3,MAX($F$1:F2)+1,"n/a") -> n/a | G3: Happytown Unified School District | H3: 75000 | J3: 95000 | M3: 02 Antelope Valley | N3: 02 Antelope Valley
A4: 03 Barstow | C4: 00 - XYZ Adult Education Consortium | D4: 00 - XYZ Adult Education ConsortiumLake Town Unified School District | E4: 452_Lake Town Unified School District | F4: =IF(SUMMARY!$B$4=C4,MAX($F$1:F3)+1,"n/a") -> n/a | G4: Lake Town Unified School District | H4: 100000 | J4: 90000 | M4: 03 Barstow | N4: 03 Barstow
A5: 04 Butte-Glenn | B5: member_check | C5: 00 - XYZ Adult Education Consortium | D5: 00 - XYZ Adult Education ConsortiumMerplopin Regional Occupational Center | E5: 457_Merplopin Regional Occupational Center | F5: =IF(SUMMARY!$B$4=C5,MAX($F$1:F4)+1,"n/a") -> n/a | G5: Merplopin Regional Occupational Center | H5: 90000 | J5: 90000 | M5: 04 Butte-Glenn | N5: 04 Butte-Glenn
A6: 05 Santa Cruz | C6: 00 - XYZ Adult Education Consortium | D6: 00 - XYZ Adult Education ConsortiumPlunkerville Union School District | E6: 456_Plunkerville Union School District | F6: =IF(SUMMARY!$B$4=C6,MAX($F$1:F5)+1,"n/a") -> n/a | G6: Plunkerville Union School District | H6: 300000 | J6: 300000 | M6: 05 Santa Cruz | N6: 05 Santa Cruz
A7: 06 Southeast Los Angeles | B7: Submission Key (STATIC) | C7: 00 - XYZ Adult Education Consortium | D7: 00 - XYZ Adult Education ConsortiumSandwichville Unified School District | E7: 453_Sandwichville Unified School District | F7: =IF(SUMMARY!$B$4=C7,MAX($F$1:F6)+1,"n/a") -> n/a | G7: Sandwichville Unified School District | H7: 200000 | J7: 200000 | M7: 06 Southeast Los Angeles | N7: 06 PACE
A8: 07 Mid Alameda County (Chabot-Las Positas) | B8: =SUBSTITUTE($B$16&"_"&TEXT(NOW(),"yymmddhhmmss")," ","-") -> 25-Lassen_160822173811 | C8: 00 - XYZ Adult Education Consortium | D8: 02 Antelope ValleySouthern Kern Unified School District | E8: 458_Smerpopolis County Office of Education | F8: =IF(SUMMARY!$B$4=C8,MAX($F$1:F7)+1,"n/a") -> n/a | G8: Smerpopolis County Office of Education | H8: 90000 | J8: 90000 | M8: 07 Mid Alameda County (Chabot-Las Positas) | N8: 07 Mid-Alameda
A9: 08 West End Corridor | B9: filename | C9: 01 Allan Hancock | D9: =C9&G9 -> 01 Allan HancockAllan Hancock Joint Community College District | E9: 448_Allan Hancock Joint Community College District | F9: =IF(SUMMARY!$B$4=C9,MAX($F$1:F8)+1,"n/a") -> n/a | G9: Allan Hancock Joint Community College District | H9: 630850 | I9: 630850 | J9: 663431 | K9: 663431 | M9: 08 West End Corridor | N9: 08 West End
A10: 09 Citrus | B10: =MID(CELL("filename"),SEARCH("[",CELL("filename"))+1,SEARCH("]",CELL("filename"))-SEARCH("[",CELL("filename"))-1) -> All Schools Lassen Consortium Expenditures.xlsm | C10: 01 Allan Hancock | D10: 01 Allan HancockLompoc Unified School District | E10: 95_Lompoc Unified School District | F10: =IF(SUMMARY!$B$4=C10,MAX($F$1:F9)+1,"n/a") -> n/a | G10: Lompoc Unified School District | H10: 908755 | I10: 908755 | J10: 908755 | K10: 908755 | M10: 09 Citrus | N10: 09 Citrus
A11: 10 Coast | C11: 01 Allan Hancock | D11: 01 Allan HancockSanta Barbara County Workforce Investment Board* | E11: 9_Santa Barbara County Workforce Investment Board* | F11: =IF(SUMMARY!$B$4=C11,MAX($F$1:F10)+1,"n/a") -> n/a | G11: Santa Barbara County Workforce Investment Board* | H11: 0 | I11: 0 | J11: 0 | K11: 0 | M11: 10 Coast | N11: 10 Coast
A12: 11 Tri-Cities | B12: Filename (Formula) | C12: 02 Antelope Valley | D12: 02 Antelope ValleyAntelope Valley Community College District | E12: 447_Antelope Valley Community College District | F12: =IF(SUMMARY!$B$4=C12,MAX($F$1:F11)+1,"n/a") -> n/a | G12: Antelope Valley Community College District | H12: 0 | I12: 0 | J12: 0 | K12: 0 | M12: 11 Tri-Cities | N12: 11 Tri-Cities
A13: 12 Contra Costa | B13: =SUBSTITUTE($B$16," ","-")&"_"&TEXT(NOW(),"yymmddhhmmss") -> 25-Lassen_160822173811 | C13: 02 Antelope Valley | D13: 02 Antelope ValleyAntelope Valley Union High School District | E13: 279_Antelope Valley Union High School District | F13: =IF(SUMMARY!$B$4=C13,MAX($F$1:F12)+1,"n/a") -> n/a | G13: Antelope Valley Union High School District | H13: 3712115 | I13: 3712115 | J13: 3758343 | K13: 3758343 | M13: 12 Contra Costa | N13: 12 Contra Costa
A14: 13 Morongo Basin | C14: 02 Antelope Valley | D14: 02 Antelope ValleySouthern Kern Unified School District | E14: 302_Southern Kern Unified School District | F14: =IF(SUMMARY!$B$4=C14,MAX($F$1:F13)+1,"n/a") -> n/a | G14: Southern Kern Unified School District | H14: 45390 | I14: 45390 | J14: 45390 | K14: 45390 | M14: 13 Morongo Basin | N14: 13 Morongo Basin
A15: 14 Desert | B15: Filename (Trim) | C15: 03 Barstow | D15: 03 BarstowBaker Valley Unified School District | E15: 134_Baker Valley Unified School District | F15: =IF(SUMMARY!$B$4=C15,MAX($F$1:F14)+1,"n/a") -> n/a | G15: Baker Valley Unified School District | H15: 115000 | I15: 115000 | J15: 108965 | K15: 108965 | M15: 14 Desert | N15: 14 Desert
A16: 15 South Bay (El Camino) | B16: =INDEX(N:N,MATCH(SUMMARY!B4,Sheet1!M:M,0)) -> 25 Lassen | C16: 03 Barstow | D16: 03 BarstowBarstow Community College District | E16: 446_Barstow Community College District | F16: =IF(SUMMARY!$B$4=C16,MAX($F$1:F15)+1,"n/a") -> n/a | G16: Barstow Community College District | H16: 0 | I16: 0 | J16: 0 | K16: 0 | M16: 15 South Bay (El Camino) | N16: 15 SB-El Camino
A17: 16 Feather River | C17: 03 Barstow | D17: 03 BarstowBarstow Unified School District | E17: 146_Barstow Unified School District | F17: =IF(SUMMARY!$B$4=C17,MAX($F$1:F16)+1,"n/a") -> n/a | G17: Barstow Unified School District | H17: 522308 | I17: 522308 | J17: 521959 | K17: 521959 | M17: 16 Feather River | N17: 16 Feather River
A18: 17 Foothill De Anza | C18: 03 Barstow | D18: 03 BarstowSilver Valley Unified School District | E18: 133_Silver Valley Unified School District | F18: =IF(SUMMARY!$B$4=C18,MAX($F$1:F17)+1,"n/a") -> n/a | G18: Silver Valley Unified School District | H18: 200000 | I18: 200000 | J18: 229400 | K18: 229400 | M18: 17 Foothill De Anza | N18: 17 Foothill DeAnza
A19: 18 Gavilan | C19: 04 Butte-Glenn | D19: 04 Butte-GlennButte County Office of Education | E19: 360_Butte County Office of Education | F19: =IF(SUMMARY!$B$4=C19,MAX($F$1:F18)+1,"n/a") -> n/a | G19: Butte County Office of Education | H19: 134617 | I19: 134617 | J19: 173251 | K19: 173251 | M19: 18 Gavilan | N19: 18 Gavilan
A20: 20 San Diego East (Grossmont-Cuyamaca) | C20: 04 Butte-Glenn | D20: 04 Butte-GlennGlenn County Office of Education | E20: 323_Glenn County Office of Education | F20: =IF(SUMMARY!$B$4=C20,MAX($F$1:F19)+1,"n/a") -> n/a | G20: Glenn County Office of Education | H20: 428322 | I20: 428322 | J20: 457775 | K20: 457775 | M20: 20 San Diego East (Grossmont-Cuyamaca) | N20: 20 San Diego E
A21: 21 Salinas Valley | C21: 04 Butte-Glenn | D21: 04 Butte-GlennHamilton Unified School District | E21: 322_Hamilton Unified School District | F21: =IF(SUMMARY!$B$4=C21,MAX($F$1:F20)+1,"n/a") -> n/a | G21: Hamilton Unified School District | H21: 193993 | I21: 193993 | J21: 194225 | K21: 194225 | M21: 21 Salinas Valley | N21: 21 Salinas Valley
A22: 22 Imperial | C22: 04 Butte-Glenn | D22: 04 Butte-GlennOroville Union High School District | E22: 359_Oroville Union High School District | F22: =IF(SUMMARY!$B$4=C22,MAX($F$1:F21)+1,"n/a") -> n/a | G22: Oroville Union High School District | H22: 1009059 | I22: 1009059 | J22: 1078423 | K22: 1078423 | M22: 22 Imperial | N22: 22 Imperial
A23: 23 Kern | C23: 04 Butte-Glenn | D23: 04 Butte-GlennParadise Unified School District | E23: 358_Paradise Unified School District | F23: =IF(SUMMARY!$B$4=C23,MAX($F$1:F22)+1,"n/a") -> n/a | G23: Paradise Unified School District | H23: 75403 | I23: 75403 | J23: 103530 | K23: 103530 | M23: 23 Kern | N23: 23 Kern
A24: 24 Lake Tahoe | C24: 05 Santa Cruz | D24: 05 Santa CruzCabrillo Community College District | E24: 444_Cabrillo Community College District | F24: =IF(SUMMARY!$B$4=C24,MAX($F$1:F23)+1,"n/a") -> n/a | G24: Cabrillo Community College District | H24: 378258 | I24: 378258 | J24: 378258 | K24: 378258 | M24: 24 Lake Tahoe | N24: 24 Lake Tahoe
A25: 25 Lassen | C25: 05 Santa Cruz | D25: 05 Santa CruzPajaro Valley Unified School District | E25: 82_Pajaro Valley Unified School District | F25: =IF(SUMMARY!$B$4=C25,MAX($F$1:F24)+1,"n/a") -> n/a | G25: Pajaro Valley Unified School District | H25: 2119081 | I25: 2119081 | J25: 2134598 | K25: 2134598 | M25: 25 Lassen | N25: 25 Lassen
A26: 26 Long Beach | C26: 05 Santa Cruz | D26: 05 Santa CruzSanta Cruz City School District | E26: 81_Santa Cruz City School District | F26: =IF(SUMMARY!$B$4=C26,MAX($F$1:F25)+1,"n/a") -> n/a | G26: Santa Cruz City School District | H26: 720794 | I26: 720794 | J26: 736310 | K26: 736310 | M26: 26 Long Beach | N26: 26 Long Beach
A27: 27 Los Angeles | C27: 05 Santa Cruz | D27: 05 Santa CruzSanta Cruz County Office of Education | E27: 83_Santa Cruz County Office of Education | F27: =IF(SUMMARY!$B$4=C27,MAX($F$1:F26)+1,"n/a") -> n/a | G27: Santa Cruz County Office of Education | H27: 0 | I27: 0 | J27: 0 | K27: 0 | M27: 27 Los Angeles | N27: 27 Los Angeles
A28: 28 Capital (Los Rios) | C28: 06 Southeast Los Angeles | D28: 06 Southeast Los AngelesBellflower Unified School District | E28: 274_Bellflower Unified School District | F28: =IF(SUMMARY!$B$4=C28,MAX($F$1:F27)+1,"n/a") -> n/a | G28: Bellflower Unified School District | H28: 0 | I28: 0 | J28: 25000 | K28: 25000 | M28: 28 Capital (Los Rios) | N28: 28 Capital
A29: 29 Marin | C29: 06 Southeast Los Angeles | D29: 06 Southeast Los AngelesCerritos Community College District | E29: 443_Cerritos Community College District | F29: =IF(SUMMARY!$B$4=C29,MAX($F$1:F28)+1,"n/a") -> n/a | G29: Cerritos Community College District | H29: 1707599 | I29: 1707599 | J29: 491812 | K29: 491812 | M29: 29 Marin | N29: 29 Marin
A30: 30 Mendocino-Lake | C30: 06 Southeast Los Angeles | D30: 06 Southeast Los AngelesDowney Unified School District | E30: 267_Downey Unified School District | F30: =IF(SUMMARY!$B$4=C30,MAX($F$1:F29)+1,"n/a") -> n/a | G30: Downey Unified School District | H30: 826517 | I30: 826517 | J30: 1353517 | K30: 1353517 | M30: 30 Mendocino-Lake | N30: 30 Mendocino-Lake
A31: 31 Gateway (Merced) | C31: 06 Southeast Los Angeles | D31: 06 Southeast Los AngelesNorwalk-La Mirada Unified School District | E31: 255_Norwalk-La Mirada Unified School District | F31: =IF(SUMMARY!$B$4=C31,MAX($F$1:F30)+1,"n/a") -> n/a | G31: Norwalk-La Mirada Unified School District | H31: 3605002 | I31: 3605002 | J31: 3963097 | K31: 3963097 | M31: 31 Gateway (Merced) | N31: 31 Gateway (Merced)
A32: 32 Coastal North | C32: 07 Mid Alameda County (Chabot-Las Positas) | D32: 07 Mid Alameda County (Chabot-Las Positas)Castro Valley Unified School District | E32: 372_Castro Valley Unified School District | F32: =IF(SUMMARY!$B$4=C32,MAX($F$1:F31)+1,"n/a") -> n/a | G32: Castro Valley Unified School District | H32: 2676643 | I32: 2676643 | J32: 2664844 | K32: 2664844 | M32: 32 Coastal North | N32: 32 Coastal North
A33: 33 Monterey | C33: 07 Mid Alameda County (Chabot-Las Positas) | D33: 07 Mid Alameda County (Chabot-Las Positas)Chabot-Las Positas Community College District | E33: 442_Chabot-Las Positas Community College District | F33: =IF(SUMMARY!$B$4=C33,MAX($F$1:F32)+1,"n/a") -> n/a | G33: Chabot-Las Positas Community College District | H33: 684487 | I33: 684487 | J33: 410527 | K33: 410527 | M33: 33 Monterey | N33: 33 Monterey
A34: 34 Mt. San Antonio | C34: 07 Mid Alameda County (Chabot-Las Positas) | D34: 07 Mid Alameda County (Chabot-Las Positas)Dublin Unified School District | E34: 363_Dublin Unified School District | F34: =IF(SUMMARY!$B$4=C34,MAX($F$1:F33)+1,"n/a") -> n/a | G34: Dublin Unified School District | H34: 341998 | I34: 341998 | J34: 433185 | K34: 433185 | M34: 34 Mt. San Antonio | N34: 34 Mt. San Antonio
A35: 35 Southwest Riverside | C35: 07 Mid Alameda County (Chabot-Las Positas) | D35: 07 Mid Alameda County (Chabot-Las Positas)Eden Area ROP JPA | E35: 376_Eden Area ROP JPA | F35: =IF(SUMMARY!$B$4=C35,MAX($F$1:F34)+1,"n/a") -> n/a | G35: Eden Area ROP JPA | H35: 0 | I35: 0 | J35: 78000 | K35: 78000 | M35: 35 Southwest Riverside | N35: 35 SW Riverside
A36: 36 Napa Valley | C36: 07 Mid Alameda County (Chabot-Las Positas) | D36: 07 Mid Alameda County (Chabot-Las Positas)Hayward Unified School District | E36: 371_Hayward Unified School District | F36: =IF(SUMMARY!$B$4=C36,MAX($F$1:F35)+1,"n/a") -> n/a | G36: Hayward Unified School District | H36: 1859754 | I36: 1859754 | J36: 1809474 | K36: 1809474 | M36: 36 Napa Valley | N36: 36 Napa Valley
A37: 37 North Orange | C37: 07 Mid Alameda County (Chabot-Las Positas) | D37: 07 Mid Alameda County (Chabot-Las Positas)Livermore Valley Joint Unified School District | E37: 370_Livermore Valley Joint Unified School District | F37: =IF(SUMMARY!$B$4=C37,MAX($F$1:F36)+1,"n/a") -> n/a | G37: Livermore Valley Joint Unified School District | H37: 469500 | I37: 469500 | J37: 459557 | K37: 459557 | M37: 37 North Orange | N37: 37 North Orange
A38: 38 Southern Alameda County (Ohlone) | C38: 07 Mid Alameda County (Chabot-Las Positas) | D38: 07 Mid Alameda County (Chabot-Las Positas)New Haven Unified School District | E38: 504_New Haven Unified School District | F38: =IF(SUMMARY!$B$4=C38,MAX($F$1:F37)+1,"n/a") -> n/a | G38: New Haven Unified School District | H38: 226540 | I38: 226540 | J38: 226540 | K38: 226540 | M38: 38 Southern Alameda County (Ohlone) | N38: 38 Ohlone
A39: 39 Palo Verde | C39: 07 Mid Alameda County (Chabot-Las Positas) | D39: 07 Mid Alameda County (Chabot-Las Positas)Pleasanton Unified School District | E39: 362_Pleasanton Unified School District | F39: =IF(SUMMARY!$B$4=C39,MAX($F$1:F38)+1,"n/a") -> n/a | G39: Pleasanton Unified School District | H39: 259845 | I39: 259845 | J39: 510119 | K39: 510119 | M39: 39 Palo Verde | N39: 39 Palo Verde
A40: 40 San Diego North (Palomar) | C40: 07 Mid Alameda County (Chabot-Las Positas) | D40: 07 Mid Alameda County (Chabot-Las Positas)San Leandro Unified School District | E40: 365_San Leandro Unified School District | F40: =IF(SUMMARY!$B$4=C40,MAX($F$1:F39)+1,"n/a") -> n/a | G40: San Leandro Unified School District | H40: 1541215 | I40: 1541215 | J40: 1517612 | K40: 1517612 | M40: 40 San Diego North (Palomar) | N40: 40 Palomar
A41: 41 Pasadena | C41: 07 Mid Alameda County (Chabot-Las Positas) | D41: 07 Mid Alameda County (Chabot-Las Positas)San Lorenzo Unified School District | E41: 364_San Lorenzo Unified School District | F41: =IF(SUMMARY!$B$4=C41,MAX($F$1:F40)+1,"n/a") -> n/a | G41: San Lorenzo Unified School District | H41: 635198 | I41: 635198 | J41: 641265 | K41: 641265 | M41: 41 Pasadena | N41: 41 Pasadena
A42: 42 Northern Alameda County (Peralta) | C42: 07 Mid Alameda County (Chabot-Las Positas) | D42: 07 Mid Alameda County (Chabot-Las Positas)Tri-Valley ROP | E42: 449_Tri-Valley ROP | F42: =IF(SUMMARY!$B$4=C42,MAX($F$1:F41)+1,"n/a") -> n/a | G42: Tri-Valley ROP | H42: 2800 | I42: 2800 | J42: 12800 | K42: 12800 | M42: 42 Northern Alameda County (Peralta) | N42: 42 Peralta
A43: 43 Rancho Santiago | C43: 08 West End Corridor | D43: 08 West End CorridorBald View ROP (JPA) | E43: 488_Bald View ROP (JPA) | F43: =IF(SUMMARY!$B$4=C43,MAX($F$1:F42)+1,"n/a") -> n/a | G43: Bald View ROP (JPA) | H43: 0 | I43: 0 | J43: 0 | K43: 0 | M43: 43 Rancho Santiago | N43: 43 Rancho Santiago
A44: 44 North Coast | C44: 08 West End Corridor | D44: 08 West End CorridorChaffey Community College District | E44: 441_Chaffey Community College District | F44: =IF(SUMMARY!$B$4=C44,MAX($F$1:F43)+1,"n/a") -> n/a | G44: Chaffey Community College District | H44: 200000 | I44: 200000 | J44: 200000 | K44: 200000 | M44: 44 North Coast | N44: 44 North Coast
A45: 45 Rio Hondo | C45: 08 West End Corridor | D45: 08 West End CorridorChaffey Joint Union High School District | E45: 145_Chaffey Joint Union High School District | F45: =IF(SUMMARY!$B$4=C45,MAX($F$1:F44)+1,"n/a") -> n/a | G45: Chaffey Joint Union High School District | H45: 4010175 | I45: 4010175 | J45: 4110399 | K45: 4110399 | M45: 45 Rio Hondo | N45: 45 Rio Hondo
A46: 46 Riverside About Students | C46: 08 West End Corridor | D46: 08 West End CorridorChino Valley Unified School District | E46: 144_Chino Valley Unified School District | F46: =IF(SUMMARY!$B$4=C46,MAX($F$1:F45)+1,"n/a") -> n/a | G46: Chino Valley Unified School District | H46: 1081052 | I46: 1081052 | J46: 1081052 | K46: 1081052 | M46: 46 Riverside About Students | N46: 46 Riverside
A47: 47 San Bernardino | C47: 08 West End Corridor | D47: 08 West End CorridorFontana Unified School District | E47: 142_Fontana Unified School District | F47: =IF(SUMMARY!$B$4=C47,MAX($F$1:F46)+1,"n/a") -> n/a | G47: Fontana Unified School District | H47: 1015000 | I47: 1015000 | J47: 1015000 | K47: 1015000 | M47: 47 San Bernardino | N47: 47 San Bernardino
A48: 48 San Diego | C48: 08 West End Corridor | D48: 08 West End CorridorUpland Unified School District | E48: 129_Upland Unified School District | F48: =IF(SUMMARY!$B$4=C48,MAX($F$1:F47)+1,"n/a") -> n/a | G48: Upland Unified School District | H48: 427050 | I48: 427050 | J48: 427050 | K48: 427050 | M48: 48 San Diego | N48: 48 San Diego
A49: 49 San Fransisco | C49: 09 Citrus | D49: 09 CitrusAzusa Unified School District | E49: 277_Azusa Unified School District | F49: =IF(SUMMARY!$B$4=C49,MAX($F$1:F48)+1,"n/a") -> n/a | G49: Azusa Unified School District | H49: 1422489 | I49: 1422489 | J49: 1422489 | K49: 1422489 | M49: 49 San Fransisco | N49: 49 San Fransisco
A50: 50 Delta Sierra Alliance | C50: 09 Citrus | D50: 09 CitrusCitrus Community College District | E50: 440_Citrus Community College District | F50: =IF(SUMMARY!$B$4=C50,MAX($F$1:F49)+1,"n/a") -> n/a | G50: Citrus Community College District | H50: 380000 | I50: 380000 | J50: 380000 | K50: 380000 | M50: 50 Delta Sierra Alliance | N50: 50 Delta Sierra Alliance
A51: 51 South Bay (San Jose Evergreen) | C51: 09 Citrus | D51: 09 CitrusClaremont Unified School District | E51: 270_Claremont Unified School District | F51: =IF(SUMMARY!$B$4=C51,MAX($F$1:F50)+1,"n/a") -> n/a | G51: Claremont Unified School District | H51: 723355 | I51: 723355 | J51: 723355 | K51: 723355 | M51: 51 South Bay (San Jose Evergreen) | N51: 51 SB San Jose
A52: 52 San Luis Obispo | C52: 09 Citrus | D52: 09 CitrusDuarte Unified School District | E52: 266_Duarte Unified School District | F52: =IF(SUMMARY!$B$4=C52,MAX($F$1:F51)+1,"n/a") -> n/a | G52: Duarte Unified School District | H52: 31592 | I52: 31592 | J52: 31592 | K52: 31592 | M52: 52 San Luis Obispo | N52: 52 San Luis Obispo
A53: 53 ACCEL (San Mateo) | C53: 09 Citrus | D53: 09 CitrusGlendora Unified School District | E53: 262_Glendora Unified School District | F53: =IF(SUMMARY!$B$4=C53,MAX($F$1:F52)+1,"n/a") -> n/a | G53: Glendora Unified School District | H53: 236407 | I53: 236407 | J53: 236407 | K53: 236407 | M53: 53 ACCEL (San Mateo) | N53: 53 San Mateo
A54: 54 Santa Barbara | C54: 09 Citrus | D54: 09 CitrusMonrovia Unified School District | E54: 257_Monrovia Unified School District | F54: =IF(SUMMARY!$B$4=C54,MAX($F$1:F53)+1,"n/a") -> n/a | G54: Monrovia Unified School District | H54: 1280409 | I54: 1280409 | J54: 1303425 | K54: 1303425 | M54: 54 Santa Barbara | N54: 54 Santa Barbara
A55: 55 College of the Canyons | C55: 10 Coast | D55: 10 CoastCoast Community College District | E55: 439_Coast Community College District | F55: =IF(SUMMARY!$B$4=C55,MAX($F$1:F54)+1,"n/a") -> n/a | G55: Coast Community College District | H55: 1493273 | I55: 1493273 | J55: 1516630 | K55: 1516630 | M55: 55 College of the Canyons | N55: 55 College of the Canyons
A56: 56 Santa Monica | C56: 10 Coast | D56: 10 CoastCoastline Regional Occupational Program | E56: 196_Coastline Regional Occupational Program | F56: =IF(SUMMARY!$B$4=C56,MAX($F$1:F55)+1,"n/a") -> n/a | G56: Coastline Regional Occupational Program | H56: 0 | I56: 0 | J56: 0 | K56: 0 | M56: 56 Santa Monica | N56: 56 Santa Monica
A57: 57 Sequoias | C57: 10 Coast | D57: 10 CoastGarden Grove Unified School District | E57: 480_Garden Grove Unified School District | F57: =IF(SUMMARY!$B$4=C57,MAX($F$1:F56)+1,"n/a") -> n/a | G57: Garden Grove Unified School District | H57: 189800 | I57: 189800 | J57: 213158 | K57: 213158 | M57: 57 Sequoias | N57: 57 Sequoias
A58: 58 Shasta-Tehema-Trinity | C58: 10 Coast | D58: 10 CoastHuntington Beach Union High School District | E58: 191_Huntington Beach Union High School District | F58: =IF(SUMMARY!$B$4=C58,MAX($F$1:F57)+1,"n/a") -> n/a | G58: Huntington Beach Union High School District | H58: 5058785 | I58: 5058785 | J58: 5343771 | K58: 5343771 | M58: 58 Shasta-Tehema-Trinity | N58: 58 Shasta-Tehema-Trinity
A59: 59 Sierra Joint | C59: 10 Coast | D59: 10 CoastNewport-Mesa Unified School District | E59: 189_Newport-Mesa Unified School District | F59: =IF(SUMMARY!$B$4=C59,MAX($F$1:F58)+1,"n/a") -> n/a | G59: Newport-Mesa Unified School District | H59: 261628 | I59: 261628 | J59: 0 | K59: 0 | M59: 59 Sierra Joint | N59: 59 Sierra Joint
A60: 60 Solano | C60: 10 Coast | D60: 10 CoastOrange County Department of Education | E60: 481_Orange County Department of Education | F60: =IF(SUMMARY!$B$4=C60,MAX($F$1:F59)+1,"n/a") -> n/a | G60: Orange County Department of Education | H60: 0 | I60: 0 | J60: 0 | K60: 0 | M60: 60 Solano | N60: 60 Solano
A61: 61 Sonoma | C61: 11 Tri-Cities | D61: 11 Tri-CitiesCompton Community College District | E61: 438_Compton Community College District | F61: =IF(SUMMARY!$B$4=C61,MAX($F$1:F60)+1,"n/a") -> n/a | G61: Compton Community College District | H61: 297569 | I61: 297569 | J61: 300000 | K61: 300000 | M61: 61 Sonoma | N61: 61 Sonoma
A62: 62 South Orange | C62: 11 Tri-Cities | D62: 11 Tri-CitiesCompton Unified School District | E62: 246_Compton Unified School District | F62: =IF(SUMMARY!$B$4=C62,MAX($F$1:F61)+1,"n/a") -> n/a | G62: Compton Unified School District | H62: 1403102 | I62: 1403102 | J62: 1414567 | K62: 1414567 | M62: 62 South Orange | N62: 62 South Orange
A63: 63 South Bay (Southwestern) | C63: 11 Tri-Cities | D63: 11 Tri-CitiesLynwood Unified School District | E63: 258_Lynwood Unified School District | F63: =IF(SUMMARY!$B$4=C63,MAX($F$1:F62)+1,"n/a") -> n/a | G63: Lynwood Unified School District | H63: 1916711 | I63: 1916711 | J63: 1932372 | K63: 1932372 | M63: 63 South Bay (Southwestern) | N63: 63 SB Southwestern
A64: 64 State Center | C64: 11 Tri-Cities | D64: 11 Tri-CitiesParamount Unified School District | E64: 254_Paramount Unified School District | F64: =IF(SUMMARY!$B$4=C64,MAX($F$1:F63)+1,"n/a") -> n/a | G64: Paramount Unified School District | H64: 2164155 | I64: 2164155 | J64: 2181838 | K64: 2181838 | M64: 64 State Center | N64: 64 State Center
A65: 65 Ventura County | C65: 12 Contra Costa | D65: 12 Contra CostaAcalanes Union High School District | E65: 353_Acalanes Union High School District | F65: =IF(SUMMARY!$B$4=C65,MAX($F$1:F64)+1,"n/a") -> n/a | G65: Acalanes Union High School District | H65: 537296 | I65: 537296 | J65: 537296 | K65: 537296 | M65: 65 Ventura County | N65: 65 Ventura County
A66: 66 Victor Valley | C66: 12 Contra Costa | D66: 12 Contra CostaAntioch Unified School District | E66: 352_Antioch Unified School District | F66: =IF(SUMMARY!$B$4=C66,MAX($F$1:F65)+1,"n/a") -> n/a | G66: Antioch Unified School District | H66: 937866 | I66: 937866 | J66: 937866 | K66: 937866 | M66: 66 Victor Valley | N66: 66 Victor Valley
A67: 67 West Hills | C67: 12 Contra Costa | D67: 12 Contra CostaContra Costa Community College District | E67: 437_Contra Costa Community College District | F67: =IF(SUMMARY!$B$4=C67,MAX($F$1:F66)+1,"n/a") -> n/a | G67: Contra Costa Community College District | H67: 614198 | I67: 614198 | J67: 239421 | K67: 239421 | M67: 67 West Hills | N67: 67 West Hills
A68: 68 West Kern | C68: 12 Contra Costa | D68: 12 Contra CostaContra Costa County Office of Education | E68: 479_Contra Costa County Office of Education | F68: =IF(SUMMARY!$B$4=C68,MAX($F$1:F67)+1,"n/a") -> n/a | G68: Contra Costa County Office of Education | H68: 1303277 | I68: 1303277 | J68: 1632896 | K68: 1632896 | M68: 68 West Kern | N68: 68 West Kern
A69: 69 Stanislaus Mother Lode (Yosemite) | C69: 12 Contra Costa | D69: 12 Contra CostaLiberty Union High School District | E69: 351_Liberty Union High School District | F69: =IF(SUMMARY!$B$4=C69,MAX($F$1:F68)+1,"n/a") -> n/a | G69: Liberty Union High School District | H69: 869282 | I69: 869282 | J69: 906459 | K69: 906459 | M69: 69 Stanislaus Mother Lode (Yosemite) | N69: 69 Yosemite
A70: 70 North Central (Yuba) | C70: 12 Contra Costa | D70: 12 Contra CostaMartinez Unified School District | E70: 350_Martinez Unified School District | F70: =IF(SUMMARY!$B$4=C70,MAX($F$1:F69)+1,"n/a") -> n/a | G70: Martinez Unified School District | H70: 1421961 | I70: 1421961 | J70: 1426676 | K70: 1426676 | M70: 70 North Central (Yuba) | N70: 70 Yuba
A71: 71 Siskiyous | C71: 12 Contra Costa | D71: 12 Contra CostaMt. Diablo Unified School District | E71: 349_Mt. Diablo Unified School District | F71: =IF(SUMMARY!$B$4=C71,MAX($F$1:F70)+1,"n/a") -> n/a | G71: Mt. Diablo Unified School District | H71: 3350868 | I71: 3350868 | J71: 3439884 | K71: 3439884 | M71: 71 Siskiyous | N71: 71 Siskiyous
C72: 12 Contra Costa | D72: 12 Contra CostaPittsburg Unified School District | E72: 348_Pittsburg Unified School District | F72: =IF(SUMMARY!$B$4=C72,MAX($F$1:F71)+1,"n/a") -> n/a | G72: Pittsburg Unified School District | H72: 2476127 | I72: 2476127 | J72: 2487992 | K72: 2487992
C73: 12 Contra Costa | D73: =C73&G73 -> 12 Contra CostaWest Contra Costa Unified School District | E73: 347_West Contra Costa Unified School District | F73: =IF(SUMMARY!$B$4=C73,MAX($F$1:F72)+1,"n/a") -> n/a | G73: West Contra Costa Unified School District | H73: 2457146 | I73: 2457146 | J73: 2457146 | K73: 2457146
C74: 13 Morongo Basin | D74: 13 Morongo BasinCopper Mountain Community College District | E74: 436_Copper Mountain Community College District | F74: =IF(SUMMARY!$B$4=C74,MAX($F$1:F73)+1,"n/a") -> n/a | G74: Copper Mountain Community College District | H74: 750000 | I74: 750000 | J74: 773016 | K74: 773016
C75: 13 Morongo Basin | D75: 13 Morongo BasinMorongo Unified School District | E75: 141_Morongo Unified School District | F75: =IF(SUMMARY!$B$4=C75,MAX($F$1:F74)+1,"n/a") -> n/a | G75: Morongo Unified School District | H75: 0 | I75: 0 | J75: 0 | K75: 0
C76: 14 Desert | D76: 14 DesertCoachella Valley Unified School District | E76: 163_Coachella Valley Unified School District | F76: =IF(SUMMARY!$B$4=C76,MAX($F$1:F75)+1,"n/a") -> n/a | G76: Coachella Valley Unified School District | H76: 1391386 | I76: 1391386 | J76: 1568864 | K76: 1568864
C77: 14 Desert | D77: 14 DesertDesert Community College District | E77: 435_Desert Community College District | F77: =IF(SUMMARY!$B$4=C77,MAX($F$1:F76)+1,"n/a") -> n/a | G77: Desert Community College District | H77: 869599 | I77: 869599 | J77: 442500 | K77: 442500
C78: 14 Desert | D78: 14 DesertDesert Sands Unified School District | E78: 172_Desert Sands Unified School District | F78: =IF(SUMMARY!$B$4=C78,MAX($F$1:F77)+1,"n/a") -> n/a | G78: Desert Sands Unified School District | H78: 215038 | I78: 215038 | J78: 330604 | K78: 330604
C79: 14 Desert | D79: 14 DesertPalm Springs Unified School District | E79: 168_Palm Springs Unified School District | F79: =IF(SUMMARY!$B$4=C79,MAX($F$1:F78)+1,"n/a") -> n/a | G79: Palm Springs Unified School District | H79: 230000 | I79: 230000 | J79: 256000 | K79: 256000
C80: 14 Desert | D80: 14 DesertRiverside County Office of Education | E80: 493_Riverside County Office of Education | F80: =IF(SUMMARY!$B$4=C80,MAX($F$1:F79)+1,"n/a") -> n/a | G80: Riverside County Office of Education | H80: 293892 | I80: 293892 | J80: 465348 | K80: 465348
C81: 15 South Bay (El Camino) | D81: 15 South Bay (El Camino)Centinela Valley Union High School District | E81: 272_Centinela Valley Union High School District | F81: =IF(SUMMARY!$B$4=C81,MAX($F$1:F80)+1,"n/a") -> n/a | G81: Centinela Valley Union High School District | H81: 556745 | I81: 556745 | J81: 357837 | K81: 357837
C82: 15 South Bay (El Camino) | D82: 15 South Bay (El Camino)El Camino Community College District | E82: 434_El Camino Community College District | F82: =IF(SUMMARY!$B$4=C82,MAX($F$1:F81)+1,"n/a") -> n/a | G82: El Camino Community College District | H82: 268474 | I82: 268474 | J82: 270376 | K82: 270376
C83: 15 South Bay (El Camino) | D83: 15 South Bay (El Camino)Inglewood Unified School District | E83: 261_Inglewood Unified School District | F83: =IF(SUMMARY!$B$4=C83,MAX($F$1:F82)+1,"n/a") -> n/a | G83: Inglewood Unified School District | H83: 1009654 | I83: 1009654 | J83: 735621 | K83: 735621
C84: 15 South Bay (El Camino) | D84: 15 South Bay (El Camino)Redondo Beach Unified School District | E84: 242_Redondo Beach Unified School District | F84: =IF(SUMMARY!$B$4=C84,MAX($F$1:F83)+1,"n/a") -> n/a | G84: Redondo Beach Unified School District | H84: 3466147 | I84: 3466147 | J84: 3678777 | K84: 3678777
C85: 15 South Bay (El Camino) | D85: 15 South Bay (El Camino)Southern California ROC | E85: 281_Southern California ROC | F85: =IF(SUMMARY!$B$4=C85,MAX($F$1:F84)+1,"n/a") -> n/a | G85: Southern California ROC | H85: 0 | I85: 0 | J85: 0 | K85: 0
C86: 15 South Bay (El Camino) | D86: 15 South Bay (El Camino)Torrance Unified School District | E86: 249_Torrance Unified School District | F86: =IF(SUMMARY!$B$4=C86,MAX($F$1:F85)+1,"n/a") -> n/a | G86: Torrance Unified School District | H86: 4351957 | I86: 4351957 | J86: 4678348 | K86: 4678348
C87: 16 Feather River | D87: 16 Feather RiverFeather River Community College District | E87: 433_Feather River Community College District | F87: =IF(SUMMARY!$B$4=C87,MAX($F$1:F86)+1,"n/a") -> n/a | G87: Feather River Community College District | H87: 750000 | I87: 750000 | J87: 773016 | K87: 773016
C88: 16 Feather River | D88: 16 Feather RiverPlumas County Office of Education | E88: 179_Plumas County Office of Education | F88: =IF(SUMMARY!$B$4=C88,MAX($F$1:F87)+1,"n/a") -> n/a | G88: Plumas County Office of Education | H88: 0 | I88: 0 | J88: 0 | K88: 0
C89: 16 Feather River | D89: 16 Feather RiverPlumas Unified School District | E89: 178_Plumas Unified School District | F89: =IF(SUMMARY!$B$4=C89,MAX($F$1:F88)+1,"n/a") -> n/a | G89: Plumas Unified School District | H89: 0 | I89: 0 | J89: 0 | K89: 0
C90: 17 Foothill De Anza | D90: 17 Foothill De AnzaFoothill-DeAnza Community College District | E90: 432_Foothill-DeAnza Community College District | F90: =IF(SUMMARY!$B$4=C90,MAX($F$1:F89)+1,"n/a") -> n/a | G90: Foothill-DeAnza Community College District | H90: 398424 | I90: 398424 | J90: 410650 | K90: 410650
C91: 17 Foothill De Anza | D91: 17 Foothill De AnzaFremont Union High School District | E91: 459_Fremont Union High School District | F91: =IF(SUMMARY!$B$4=C91,MAX($F$1:F90)+1,"n/a") -> n/a | G91: Fremont Union High School District | H91: 2788184 | I91: 2788184 | J91: 2794298 | K91: 2794298
C92: 17 Foothill De Anza | D92: 17 Foothill De AnzaMountain View-Los Altos Union High School District | E92: 88_Mountain View-Los Altos Union High School District | F92: =IF(SUMMARY!$B$4=C92,MAX($F$1:F91)+1,"n/a") -> n/a | G92: Mountain View-Los Altos Union High School District | H92: 3399107 | I92: 3399107 | J92: 3405220 | K92: 3405220
C93: 17 Foothill De Anza | D93: 17 Foothill De AnzaPalo Alto Unified School District | E93: 87_Palo Alto Unified School District | F93: =IF(SUMMARY!$B$4=C93,MAX($F$1:F92)+1,"n/a") -> n/a | G93: Palo Alto Unified School District | H93: 1482247 | I93: 1482247 | J93: 1488361 | K93: 1488361
C94: 18 Gavilan | D94: 18 GavilanGavilan Joint Community College District | E94: 431_Gavilan Joint Community College District | F94: =IF(SUMMARY!$B$4=C94,MAX($F$1:F93)+1,"n/a") -> n/a | G94: Gavilan Joint Community College District | H94: 430298 | I94: 430298 | J94: 503651 | K94: 503651
C95: 18 Gavilan | D95: 18 GavilanGilroy Unified School District | E95: 90_Gilroy Unified School District | F95: =IF(SUMMARY!$B$4=C95,MAX($F$1:F94)+1,"n/a") -> n/a | G95: Gilroy Unified School District | H95: 262563 | I95: 262563 | J95: 245199 | K95: 245199
C96: 18 Gavilan | D96: 18 GavilanMorgan Hill Unified School District | E96: 89_Morgan Hill Unified School District | F96: =IF(SUMMARY!$B$4=C96,MAX($F$1:F95)+1,"n/a") -> n/a | G96: Morgan Hill Unified School District | H96: 622110 | I96: 622110 | J96: 589030 | K96: 589030
C97: 18 Gavilan | D97: 18 GavilanSan Benito High School District | E97: 148_San Benito High School District | F97: =IF(SUMMARY!$B$4=C97,MAX($F$1:F96)+1,"n/a") -> n/a | G97: San Benito High School District | H97: 30526 | I97: 30526 | J97: 30633 | K97: 30633
C98: 19 Glendale | D98: 19 GlendaleGlendale Community College District | E98: 430_Glendale Community College District | F98: =IF(SUMMARY!$B$4=C98,MAX($F$1:F97)+1,"n/a") -> n/a | G98: Glendale Community College District | H98: 485475 | I98: 485475 | J98: 515717 | K98: 515717
C99: 19 Glendale | D99: 19 GlendaleGlendale Unified School District | E99: 263_Glendale Unified School District | F99: =IF(SUMMARY!$B$4=C99,MAX($F$1:F98)+1,"n/a") -> n/a | G99: Glendale Unified School District | H99: 0 | I99: 0 | J99: 0 | K99: 0
C100: 19 Glendale | D100: 19 GlendaleVerdugo Workforce Development Board* | E100: 508_Verdugo Workforce Development Board* | F100: =IF(SUMMARY!$B$4=C100,MAX($F$1:F99)+1,"n/a") -> n/a | G100: Verdugo Workforce Development Board* | H100: 500000 | I100: 500000 | J100: 500000 | K100: 500000
C101: 20 San Diego East (Grossmont-Cuyamaca) | D101: 20 San Diego East (Grossmont-Cuyamaca)Grossmont Union High School District | E101: 124_Grossmont Union High School District | F101: =IF(SUMMARY!$B$4=C101,MAX($F$1:F100)+1,"n/a") -> n/a | G101: Grossmont Union High School District | H101: 7182509 | I101: 7182509 | J101: 7182509 | K101: 7182509
C102: 20 San Diego East (Grossmont-Cuyamaca) | D102: 20 San Diego East (Grossmont-Cuyamaca)Grossmont-Cuyamaca Community College District | E102: 429_Grossmont-Cuyamaca Community College District | F102: =IF(SUMMARY!$B$4=C102,MAX($F$1:F101)+1,"n/a") -> n/a | G102: Grossmont-Cuyamaca Community College District | H102: 628975 | I102: 628975 | J102: 675896 | K102: 675896
C103: 20 San Diego East (Grossmont-Cuyamaca) | D103: 20 San Diego East (Grossmont-Cuyamaca)Mountain Empire Unified School District | E103: 513_Mountain Empire Unified School District | F103: =IF(SUMMARY!$B$4=C103,MAX($F$1:F102)+1,"n/a") -> n/a | G103: Mountain Empire Unified School District | H103: 8267 | I103: 8267 | J103: 8267 | K103: 8267
C104: 21 Salinas Valley | D104: 21 Salinas ValleyGonzales Unified School District | E104: 202_Gonzales Unified School District | F104: =IF(SUMMARY!$B$4=C104,MAX($F$1:F103)+1,"n/a") -> n/a | G104: Gonzales Unified School District | H104: 255628 | I104: 255628 | J104: 255628 | K104: 255628
C105: 21 Salinas Valley | D105: 21 Salinas ValleyHartnell Community College District | E105: 428_Hartnell Community College District | F105: =IF(SUMMARY!$B$4=C105,MAX($F$1:F104)+1,"n/a") -> n/a | G105: Hartnell Community College District | H105: 562577 | I105: 562577 | J105: 614866 | K105: 614866
C106: 21 Salinas Valley | D106: 21 Salinas ValleyMonterey County Office of Education | E106: 210_Monterey County Office of Education | F106: =IF(SUMMARY!$B$4=C106,MAX($F$1:F105)+1,"n/a") -> n/a | G106: Monterey County Office of Education | H106: 28000 | I106: 28000 | J106: 28000 | K106: 28000
C107: 21 Salinas Valley | D107: 21 Salinas ValleyNorth Monterey County Unified School District | E107: 204_North Monterey County Unified School District | F107: =IF(SUMMARY!$B$4=C107,MAX($F$1:F106)+1,"n/a") -> n/a | G107: North Monterey County Unified School District | H107: 454242 | I107: 454242 | J107: 454242 | K107: 454242
C108: 21 Salinas Valley | D108: 21 Salinas ValleySalinas Union High School District | E108: 205_Salinas Union High School District | F108: =IF(SUMMARY!$B$4=C108,MAX($F$1:F107)+1,"n/a") -> n/a | G108: Salinas Union High School District | H108: 1716285 | I108: 1716285 | J108: 1716285 | K108: 1716285
C109: 21 Salinas Valley | D109: 21 Salinas ValleySoledad Unified School District | E109: 203_Soledad Unified School District | F109: =IF(SUMMARY!$B$4=C109,MAX($F$1:F108)+1,"n/a") -> n/a | G109: Soledad Unified School District | H109: 342618 | I109: 342618 | J109: 342618 | K109: 342618
C110: 21 Salinas Valley | D110: 21 Salinas ValleySouth Monterey County Joint Union High School District | E110: 208_South Monterey County Joint Union High School District | F110: =IF(SUMMARY!$B$4=C110,MAX($F$1:F109)+1,"n/a") -> n/a | G110: South Monterey County Joint Union High School District | H110: 78500 | I110: 78500 | J110: 78500 | K110: 78500
C111: 22 Imperial | D111: 22 ImperialBrawley Union High School District | E111: 314_Brawley Union High School District | F111: =IF(SUMMARY!$B$4=C111,MAX($F$1:F110)+1,"n/a") -> n/a | G111: Brawley Union High School District | H111: 68035 | I111: 68035 | J111: 68035 | K111: 68035
C112: 22 Imperial | D112: 22 ImperialCalexico Unified School District | E112: 313_Calexico Unified School District | F112: =IF(SUMMARY!$B$4=C112,MAX($F$1:F111)+1,"n/a") -> n/a | G112: Calexico Unified School District | H112: 261128 | I112: 261128 | J112: 261128 | K112: 261128
C113: 22 Imperial | D113: 22 ImperialCalipatria Unified School District | E113: 312_Calipatria Unified School District | F113: =IF(SUMMARY!$B$4=C113,MAX($F$1:F112)+1,"n/a") -> n/a | G113: Calipatria Unified School District | H113: 27900 | I113: 27900 | J113: 27900 | K113: 27900
C114: 22 Imperial | D114: 22 ImperialCentral Union High School District | E114: 311_Central Union High School District | F114: =IF(SUMMARY!$B$4=C114,MAX($F$1:F113)+1,"n/a") -> n/a | G114: Central Union High School District | H114: 592905 | I114: 592905 | J114: 592905 | K114: 592905
C115: 22 Imperial | D115: 22 ImperialHoltville Unified School District | E115: 310_Holtville Unified School District | F115: =IF(SUMMARY!$B$4=C115,MAX($F$1:F114)+1,"n/a") -> n/a | G115: Holtville Unified School District | H115: 166774 | I115: 166774 | J115: 166774 | K115: 166774
C116: 22 Imperial | D116: 22 ImperialImperial Community College District | E116: 427_Imperial Community College District | F116: =IF(SUMMARY!$B$4=C116,MAX($F$1:F115)+1,"n/a") -> n/a | G116: Imperial Community College District | H116: 75000 | I116: 75000 | J116: 0 | K116: 0
C117: 22 Imperial | D117: 22 ImperialImperial County Office of Education | E117: 315_Imperial County Office of Education | F117: =IF(SUMMARY!$B$4=C117,MAX($F$1:F116)+1,"n/a") -> n/a | G117: Imperial County Office of Education | H117: 648754 | I117: 648754 | J117: 680322 | K117: 680322
C118: 22 Imperial | D118: 22 ImperialImperial Unified School District | E118: 309_Imperial Unified School District | F118: =IF(SUMMARY!$B$4=C118,MAX($F$1:F117)+1,"n/a") -> n/a | G118: Imperial Unified School District | H118: 17759 | I118: 17759 | J118: 17759 | K118: 17759
C119: 22 Imperial | D119: 22 ImperialSan Pasqual Valley Unified School District | E119: 308_San Pasqual Valley Unified School District | F119: =IF(SUMMARY!$B$4=C119,MAX($F$1:F118)+1,"n/a") -> n/a | G119: San Pasqual Valley Unified School District | H119: 31834 | I119: 31834 | J119: 31834 | K119: 31834
C120: 23 Kern | D120: 23 KernDelano Joint Union High School District | E120: 306_Delano Joint Union High School District | F120: =IF(SUMMARY!$B$4=C120,MAX($F$1:F119)+1,"n/a") -> n/a | G120: Delano Joint Union High School District | H120: 1354485 | I120: 1354485 | J120: 1354485 | K120: 1354485
C121: 23 Kern | D121: 23 KernKern Community College District | E121: 426_Kern Community College District | F121: =IF(SUMMARY!$B$4=C121,MAX($F$1:F120)+1,"n/a") -> n/a | G121: Kern Community College District | H121: 1541564 | I121: 1541564 | J121: 1633096 | K121: 1633096
C122: 23 Kern | D122: 23 KernKern County Regional Occupational Center | E122: 1_Kern County Regional Occupational Center | F122: =IF(SUMMARY!$B$4=C122,MAX($F$1:F121)+1,"n/a") -> n/a | G122: Kern County Regional Occupational Center | H122: 0 | I122: 0 | J122: 0 | K122: 0
C123: 23 Kern | D123: 23 KernKern County Superintendent of Schools | E123: 307_Kern County Superintendent of Schools | F123: =IF(SUMMARY!$B$4=C123,MAX($F$1:F122)+1,"n/a") -> n/a | G123: Kern County Superintendent of Schools | H123: 0 | I123: 0 | J123: 0 | K123: 0
C124: 23 Kern | D124: 23 KernKern Union High School District | E124: 305_Kern Union High School District | F124: =IF(SUMMARY!$B$4=C124,MAX($F$1:F123)+1,"n/a") -> n/a | G124: Kern Union High School District | H124: 10250051 | I124: 10250051 | J124: 10250051 | K124: 10250051
C125: 23 Kern | D125: 23 KernMammoth Unified School District | E125: 211_Mammoth Unified School District | F125: =IF(SUMMARY!$B$4=C125,MAX($F$1:F124)+1,"n/a") -> n/a | G125: Mammoth Unified School District | H125: 0 | I125: 0 | J125: 0 | K125: 0
C126: 23 Kern | D126: 23 KernMcFarland Unified School District | E126: 296_McFarland Unified School District | F126: =IF(SUMMARY!$B$4=C126,MAX($F$1:F125)+1,"n/a") -> n/a | G126: McFarland Unified School District | H126: 296147 | I126: 296147 | J126: 296147 | K126: 296147
C127: 23 Kern | D127: 23 KernMojave Unified School District | E127: 303_Mojave Unified School District | F127: =IF(SUMMARY!$B$4=C127,MAX($F$1:F126)+1,"n/a") -> n/a | G127: Mojave Unified School District | H127: 294500 | I127: 294500 | J127: 294500 | K127: 294500
C128: 23 Kern | D128: 23 KernMono County Office of Education | E128: 212_Mono County Office of Education | F128: =IF(SUMMARY!$B$4=C128,MAX($F$1:F127)+1,"n/a") -> n/a | G128: Mono County Office of Education | H128: 205922 | I128: 205922 | J128: 205922 | K128: 205922
C129: 23 Kern | D129: 23 KernMuroc Joint Unified School District | E129: 476_Muroc Joint Unified School District | F129: =IF(SUMMARY!$B$4=C129,MAX($F$1:F128)+1,"n/a") -> n/a | G129: Muroc Joint Unified School District | H129: 0 | I129: 0 | J129: 52000 | K129: 52000
C130: 23 Kern | D130: 23 KernPorterville Unified School District | E130: 30_Porterville Unified School District | F130: =IF(SUMMARY!$B$4=C130,MAX($F$1:F129)+1,"n/a") -> n/a | G130: Porterville Unified School District | H130: 1388787 | I130: 1388787 | J130: 1388787 | K130: 1388787
C131: 23 Kern | D131: 23 KernSierra Sands Unified School District | E131: 297_Sierra Sands Unified School District | F131: =IF(SUMMARY!$B$4=C131,MAX($F$1:F130)+1,"n/a") -> n/a | G131: Sierra Sands Unified School District | H131: 222750 | I131: 222750 | J131: 222750 | K131: 222750
C132: 23 Kern | D132: 23 KernTehachapi Unified School District | E132: 299_Tehachapi Unified School District | F132: =IF(SUMMARY!$B$4=C132,MAX($F$1:F131)+1,"n/a") -> n/a | G132: Tehachapi Unified School District | H132: 187036 | I132: 187036 | J132: 187036 | K132: 187036
C133: 23 Kern | D133: 23 KernWasco Union High School District | E133: 298_Wasco Union High School District | F133: =IF(SUMMARY!$B$4=C133,MAX($F$1:F132)+1,"n/a") -> n/a | G133: Wasco Union High School District | H133: 241292 | I133: 241292 | J133: 241292 | K133: 241292
C134: 24 Lake Tahoe | D134: 24 Lake TahoeAlpine County Unified School District | E134: 487_Alpine County Unified School District | F134: =IF(SUMMARY!$B$4=C134,MAX($F$1:F133)+1,"n/a") -> n/a | G134: Alpine County Unified School District | H134: 71429 | I134: 71429 | J134: 75000 | K134: 75000
C135: 24 Lake Tahoe | D135: 24 Lake TahoeEl Dorado County Office of Education | E135: 486_El Dorado County Office of Education | F135: =IF(SUMMARY!$B$4=C135,MAX($F$1:F134)+1,"n/a") -> n/a | G135: El Dorado County Office of Education | H135: 31000 | I135: 31000 | J135: 31000 | K135: 31000
C136: 24 Lake Tahoe | D136: 24 Lake TahoeLake Tahoe Community College District | E136: 425_Lake Tahoe Community College District | F136: =IF(SUMMARY!$B$4=C136,MAX($F$1:F135)+1,"n/a") -> n/a | G136: Lake Tahoe Community College District | H136: 622571 | I136: 622571 | J136: 644318 | K136: 644318
C137: 24 Lake Tahoe | D137: =C137&G137 -> 24 Lake TahoeLake Tahoe Unified School District | E137: 344_Lake Tahoe Unified School District | F137: =IF(SUMMARY!$B$4=C137,MAX($F$1:F136)+1,"n/a") -> n/a | G137: Lake Tahoe Unified School District | H137: 100000 | I137: 100000 | J137: 100000 | K137: 100000
C138: 25 Lassen | D138: 25 LassenBig Valley Joint Unified School District | E138: 286_Big Valley Joint Unified School District | F138: =IF(SUMMARY!$B$4=C138,MAX($F$1:F137)+1,"n/a") -> 1 | G138: Big Valley Joint Unified School District | H138: 2139 | I138: 2139 | J138: 7500 | K138: 7500
C139: 25 Lassen | D139: 25 LassenFort Sage Unified School District | E139: 283_Fort Sage Unified School District | F139: =IF(SUMMARY!$B$4=C139,MAX($F$1:F138)+1,"n/a") -> 2 | G139: Fort Sage Unified School District | H139: 0 | I139: 0 | J139: 15000 | K139: 15000
C140: 25 Lassen | D140: 25 LassenLassen Community College District | E140: 424_Lassen Community College District | F140: =IF(SUMMARY!$B$4=C140,MAX($F$1:F139)+1,"n/a") -> 3 | G140: Lassen Community College District | H140: 662929 | I140: 662929 | J140: 661346 | K140: 661346
C141: 25 Lassen | D141: 25 LassenLassen County Office of Education | E141: 287_Lassen County Office of Education | F141: =IF(SUMMARY!$B$4=C141,MAX($F$1:F140)+1,"n/a") -> 4 | G141: Lassen County Office of Education | H141: 0 | I141: 0 | J141: 0 | K141: 0
C142: 25 Lassen | D142: 25 LassenLassen Union High School District | E142: 285_Lassen Union High School District | F142: =IF(SUMMARY!$B$4=C142,MAX($F$1:F141)+1,"n/a") -> 5 | G142: Lassen Union High School District | H142: 24941 | I142: 24941 | J142: 24941 | K142: 24941
C143: 25 Lassen | D143: 25 LassenLong Valley Charter School | E143: 5_Long Valley Charter School | F143: =IF(SUMMARY!$B$4=C143,MAX($F$1:F142)+1,"n/a") -> 6 | G143: Long Valley Charter School | H143: 82071 | I143: 82071 | J143: 82071 | K143: 82071
C144: 25 Lassen | D144: 25 LassenModoc County Office of Education | E144: 216_Modoc County Office of Education | F144: =IF(SUMMARY!$B$4=C144,MAX($F$1:F143)+1,"n/a") -> 7 | G144: Modoc County Office of Education | H144: 90000 | I144: 90000 | J144: 90000 | K144: 90000
C145: 25 Lassen | D145: 25 LassenModoc Joint Unified School District | E145: 214_Modoc Joint Unified School District | F145: =IF(SUMMARY!$B$4=C145,MAX($F$1:F144)+1,"n/a") -> 8 | G145: Modoc Joint Unified School District | H145: 0 | I145: 0 | J145: 0 | K145: 0
C146: 25 Lassen | D146: 25 LassenShaffer Elementary School District | E146: 4_Shaffer Elementary School District | F146: =IF(SUMMARY!$B$4=C146,MAX($F$1:F145)+1,"n/a") -> 9 | G146: Shaffer Elementary School District | H146: 0 | I146: 0 | J146: 0 | K146: 0
C147: 25 Lassen | D147: 25 LassenSurprise Valley Joint Unified School District | E147: 215_Surprise Valley Joint Unified School District | F147: =IF(SUMMARY!$B$4=C147,MAX($F$1:F146)+1,"n/a") -> 10 | G147: Surprise Valley Joint Unified School District | H147: 0 | I147: 0 | J147: 0 | K147: 0
C148: 25 Lassen | D148: 25 LassenWestwood Unified School District | E148: 284_Westwood Unified School District | F148: =IF(SUMMARY!$B$4=C148,MAX($F$1:F147)+1,"n/a") -> 11 | G148: Westwood Unified School District | H148: 5000 | I148: 5000 | J148: 12000 | K148: 12000
C149: 26 Long Beach | D149: 26 Long BeachLong Beach Community College District | E149: 423_Long Beach Community College District | F149: =IF(SUMMARY!$B$4=C149,MAX($F$1:F148)+1,"n/a") -> n/a | G149: Long Beach Community College District | H149: 1076263 | I149: 1076263 | J149: 1135280 | K149: 1135280
C150: 26 Long Beach | D150: 26 Long BeachLong Beach Unified School District | E150: 260_Long Beach Unified School District | F150: =IF(SUMMARY!$B$4=C150,MAX($F$1:F149)+1,"n/a") -> n/a | G150: Long Beach Unified School District | H150: 1128240 | I150: 1128240 | J150: 1135280 | K150: 1135280
C151: 27 Los Angeles | D151: 27 Los AngelesBurbank Unified School District | E151: 273_Burbank Unified School District | F151: =IF(SUMMARY!$B$4=C151,MAX($F$1:F150)+1,"n/a") -> n/a | G151: Burbank Unified School District | H151: 2386239 | I151: 2386239 | J151: 2404739 | K151: 2404739
C152: 27 Los Angeles | D152: 27 Los AngelesCulver City Unified School District | E152: 268_Culver City Unified School District | F152: =IF(SUMMARY!$B$4=C152,MAX($F$1:F151)+1,"n/a") -> n/a | G152: Culver City Unified School District | H152: 1451825 | I152: 1451825 | J152: 1462397 | K152: 1462397
C153: 27 Los Angeles | D153: 27 Los AngelesLos Angeles Community College District | E153: 422_Los Angeles Community College District | F153: =IF(SUMMARY!$B$4=C153,MAX($F$1:F152)+1,"n/a") -> n/a | G153: Los Angeles Community College District | H153: 7000000 | I153: 7000000 | J153: 7185004 | K153: 7185004
C154: 27 Los Angeles | D154: 27 Los AngelesLos Angeles Unified School District | E154: 259_Los Angeles Unified School District | F154: =IF(SUMMARY!$B$4=C154,MAX($F$1:F153)+1,"n/a") -> n/a | G154: Los Angeles Unified School District | H154: 94613746 | I154: 94613746 | J154: 95187273 | K154: 95187273
C155: 27 Los Angeles | D155: 27 Los AngelesMontebello Unified School District | E155: 256_Montebello Unified School District | F155: =IF(SUMMARY!$B$4=C155,MAX($F$1:F154)+1,"n/a") -> n/a | G155: Montebello Unified School District | H155: 15505002 | I155: 15505002 | J155: 15588254 | K155: 15588254
C156: 28 Capital (Los Rios) | D156: 28 Capital (Los Rios)Amador County Unified School District | E156: 361_Amador County Unified School District | F156: =IF(SUMMARY!$B$4=C156,MAX($F$1:F155)+1,"n/a") -> n/a | G156: Amador County Unified School District | H156: 592711 | I156: 592711 | J156: 592711 | K156: 592711
C157: 28 Capital (Los Rios) | D157: 28 Capital (Los Rios)Center Joint Unified School District | E157: 151_Center Joint Unified School District | F157: =IF(SUMMARY!$B$4=C157,MAX($F$1:F156)+1,"n/a") -> n/a | G157: Center Joint Unified School District | H157: 185012 | I157: 185012 | J157: 185012 | K157: 185012
C158: 28 Capital (Los Rios) | D158: 28 Capital (Los Rios)Davis Joint Unified School District | E158: 12_Davis Joint Unified School District | F158: =IF(SUMMARY!$B$4=C158,MAX($F$1:F157)+1,"n/a") -> n/a | G158: Davis Joint Unified School District | H158: 304333 | I158: 304333 | J158: 304333 | K158: 304333
C159: 28 Capital (Los Rios) | D159: 28 Capital (Los Rios)El Dorado County Office of Education | E159: 346_El Dorado County Office of Education | F159: =IF(SUMMARY!$B$4=C159,MAX($F$1:F158)+1,"n/a") -> n/a | G159: El Dorado County Office of Education | H159: 170071 | I159: 170071 | J159: 170071 | K159: 170071
C160: 28 Capital (Los Rios) | D160: 28 Capital (Los Rios)Elk Grove Unified School District | E160: 157_Elk Grove Unified School District | F160: =IF(SUMMARY!$B$4=C160,MAX($F$1:F159)+1,"n/a") -> n/a | G160: Elk Grove Unified School District | H160: 1838942 | I160: 1838942 | J160: 1838942 | K160: 1838942
C161: 28 Capital (Los Rios) | D161: 28 Capital (Los Rios)Folsom-Cordova Unified School District | E161: 156_Folsom-Cordova Unified School District | F161: =IF(SUMMARY!$B$4=C161,MAX($F$1:F160)+1,"n/a") -> n/a | G161: Folsom-Cordova Unified School District | H161: 602568 | I161: 602568 | J161: 602568 | K161: 602568
C162: 28 Capital (Los Rios) | D162: 28 Capital (Los Rios)Galt Joint Union High School District | E162: 155_Galt Joint Union High School District | F162: =IF(SUMMARY!$B$4=C162,MAX($F$1:F161)+1,"n/a") -> n/a | G162: Galt Joint Union High School District | H162: 301621 | I162: 301621 | J162: 301621 | K162: 301621
C163: 28 Capital (Los Rios) | D163: 28 Capital (Los Rios)Los Rios Community College District | E163: 421_Los Rios Community College District | F163: =IF(SUMMARY!$B$4=C163,MAX($F$1:F162)+1,"n/a") -> n/a | G163: Los Rios Community College District | H163: 0 | I163: 0 | J163: 0 | K163: 0
C164: 28 Capital (Los Rios) | D164: 28 Capital (Los Rios)Natomas Unified School District | E164: 150_Natomas Unified School District | F164: =IF(SUMMARY!$B$4=C164,MAX($F$1:F163)+1,"n/a") -> n/a | G164: Natomas Unified School District | H164: 252262 | I164: 252262 | J164: 252262 | K164: 252262
C165: 28 Capital (Los Rios) | D165: 28 Capital (Los Rios)Sacramento City Unified School District | E165: 153_Sacramento City Unified School District | F165: =IF(SUMMARY!$B$4=C165,MAX($F$1:F164)+1,"n/a") -> n/a | G165: Sacramento City Unified School District | H165: 1079980 | I165: 1079980 | J165: 1079980 | K165: 1079980
C166: 28 Capital (Los Rios) | D166: 28 Capital (Los Rios)Sacramento County Office of Education | E166: 158_Sacramento County Office of Education | F166: =IF(SUMMARY!$B$4=C166,MAX($F$1:F165)+1,"n/a") -> n/a | G166: Sacramento County Office of Education | H166: 1134448 | I166: 1134448 | J166: 1316178 | K166: 1316178
C167: 28 Capital (Los Rios) | D167: 28 Capital (Los Rios)San Juan Unified School District | E167: 152_San Juan Unified School District | F167: =IF(SUMMARY!$B$4=C167,MAX($F$1:F166)+1,"n/a") -> n/a | G167: San Juan Unified School District | H167: 1502789 | I167: 1502789 | J167: 1502789 | K167: 1502789
C168: 28 Capital (Los Rios) | D168: 28 Capital (Los Rios)Twin Rivers Unified School District | E168: 149_Twin Rivers Unified School District | F168: =IF(SUMMARY!$B$4=C168,MAX($F$1:F167)+1,"n/a") -> n/a | G168: Twin Rivers Unified School District | H168: 2653394 | I168: 2653394 | J168: 2653394 | K168: 2653394
C169: 28 Capital (Los Rios) | D169: 28 Capital (Los Rios)Washington Unified School District | E169: 324_Washington Unified School District | F169: =IF(SUMMARY!$B$4=C169,MAX($F$1:F168)+1,"n/a") -> n/a | G169: Washington Unified School District | H169: 328596 | I169: 328596 | J169: 328596 | K169: 328596
C170: 29 Marin | D170: 29 MarinMarin Community College District | E170: 420_Marin Community College District | F170: =IF(SUMMARY!$B$4=C170,MAX($F$1:F169)+1,"n/a") -> n/a | G170: Marin Community College District | H170: 235000 | I170: 235000 | J170: 235000 | K170: 235000
C171: 29 Marin | D171: 29 MarinMarin County Office of Education | E171: 236_Marin County Office of Education | F171: =IF(SUMMARY!$B$4=C171,MAX($F$1:F170)+1,"n/a") -> n/a | G171: Marin County Office of Education | H171: 160000 | I171: 160000 | J171: 160000 | K171: 160000
C172: 29 Marin | D172: 29 MarinNovato Unified School District | E172: 235_Novato Unified School District | F172: =IF(SUMMARY!$B$4=C172,MAX($F$1:F171)+1,"n/a") -> n/a | G172: Novato Unified School District | H172: 180144 | I172: 180144 | J172: 180144 | K172: 180144
C173: 29 Marin | D173: 29 MarinSan Rafael City High School District | E173: 234_San Rafael City High School District | F173: =IF(SUMMARY!$B$4=C173,MAX($F$1:F172)+1,"n/a") -> n/a | G173: San Rafael City High School District | H173: 100000 | I173: 100000 | J173: 123016 | K173: 123016
C174: 29 Marin | D174: 29 MarinShoreline Unified School District | E174: 232_Shoreline Unified School District | F174: =IF(SUMMARY!$B$4=C174,MAX($F$1:F173)+1,"n/a") -> n/a | G174: Shoreline Unified School District | H174: 0 | I174: 0 | J174: 0 | K174: 0
C175: 29 Marin | D175: 29 MarinTamalpais Union High School District | E175: 233_Tamalpais Union High School District | F175: =IF(SUMMARY!$B$4=C175,MAX($F$1:F174)+1,"n/a") -> n/a | G175: Tamalpais Union High School District | H175: 699161 | I175: 699161 | J175: 699161 | K175: 699161
C176: 30 Mendocino-Lake | D176: 30 Mendocino-LakeAnderson Valley Unified School District | E176: 229_Anderson Valley Unified School District | F176: =IF(SUMMARY!$B$4=C176,MAX($F$1:F175)+1,"n/a") -> n/a | G176: Anderson Valley Unified School District | H176: 39017 | I176: 39017 | J176: 39017 | K176: 39017
C177: 30 Mendocino-Lake | D177: 30 Mendocino-LakeKelseyville Unified School District | E177: 289_Kelseyville Unified School District | F177: =IF(SUMMARY!$B$4=C177,MAX($F$1:F176)+1,"n/a") -> n/a | G177: Kelseyville Unified School District | H177: 16181 | I177: 16181 | J177: 16181 | K177: 16181
C178: 30 Mendocino-Lake | D178: 30 Mendocino-LakeLake County Office of Education | E178: 512_Lake County Office of Education | F178: =IF(SUMMARY!$B$4=C178,MAX($F$1:F177)+1,"n/a") -> n/a | G178: Lake County Office of Education | H178: 0 | I178: 0 | J178: 0 | K178: 0
C179: 30 Mendocino-Lake | D179: 30 Mendocino-LakeMendocino County Office of Education | E179: 230_Mendocino County Office of Education | F179: =IF(SUMMARY!$B$4=C179,MAX($F$1:F178)+1,"n/a") -> n/a | G179: Mendocino County Office of Education | H179: 0 | I179: 0 | J179: 0 | K179: 0
C180: 30 Mendocino-Lake | D180: 30 Mendocino-LakeMendocino-Lake Community College District | E180: 419_Mendocino-Lake Community College District | F180: =IF(SUMMARY!$B$4=C180,MAX($F$1:F179)+1,"n/a") -> n/a | G180: Mendocino-Lake Community College District | H180: 750000 | I180: 750000 | J180: 773016 | K180: 773016
C181: 30 Mendocino-Lake | D181: 30 Mendocino-LakeRound Valley Unified School District | E181: 226_Round Valley Unified School District | F181: =IF(SUMMARY!$B$4=C181,MAX($F$1:F180)+1,"n/a") -> n/a | G181: Round Valley Unified School District | H181: 0 | I181: 0 | J181: 0 | K181: 0
C182: 30 Mendocino-Lake | D182: 30 Mendocino-LakeUkiah Unified School District | E182: 225_Ukiah Unified School District | F182: =IF(SUMMARY!$B$4=C182,MAX($F$1:F181)+1,"n/a") -> n/a | G182: Ukiah Unified School District | H182: 594365 | I182: 594365 | J182: 594365 | K182: 594365
C183: 31 Gateway (Merced) | D183: 31 Gateway (Merced)Delhi Unified School District | E183: 217_Delhi Unified School District | F183: =IF(SUMMARY!$B$4=C183,MAX($F$1:F182)+1,"n/a") -> n/a | G183: Delhi Unified School District | H183: 139401 | I183: 139401 | J183: 164943 | K183: 164943
C184: 31 Gateway (Merced) | D184: 31 Gateway (Merced)Dos Palos Oro Loma Jt. Unified School District | E184: 218_Dos Palos Oro Loma Jt. Unified School District | F184: =IF(SUMMARY!$B$4=C184,MAX($F$1:F183)+1,"n/a") -> n/a | G184: Dos Palos Oro Loma Jt. Unified School District | H184: 65205 | I184: 65205 | J184: 76903 | K184: 76903
C185: 31 Gateway (Merced) | D185: 31 Gateway (Merced)Gustine Unified School District | E185: 219_Gustine Unified School District | F185: =IF(SUMMARY!$B$4=C185,MAX($F$1:F184)+1,"n/a") -> n/a | G185: Gustine Unified School District | H185: 164075 | I185: 164075 | J185: 180256 | K185: 180256
C186: 31 Gateway (Merced) | D186: 31 Gateway (Merced)Le Grand Union High School District | E186: 222_Le Grand Union High School District | F186: =IF(SUMMARY!$B$4=C186,MAX($F$1:F185)+1,"n/a") -> n/a | G186: Le Grand Union High School District | H186: 64091 | I186: 64091 | J186: 75478 | K186: 75478
C187: 31 Gateway (Merced) | D187: 31 Gateway (Merced)Los Banos Unified School District | E187: 221_Los Banos Unified School District | F187: =IF(SUMMARY!$B$4=C187,MAX($F$1:F186)+1,"n/a") -> n/a | G187: Los Banos Unified School District | H187: 0 | I187: 0 | J187: 0 | K187: 0
C188: 31 Gateway (Merced) | D188: 31 Gateway (Merced)Mariposa County Unified School District | E188: 231_Mariposa County Unified School District | F188: =IF(SUMMARY!$B$4=C188,MAX($F$1:F187)+1,"n/a") -> n/a | G188: Mariposa County Unified School District | H188: 175000 | I188: 175000 | J188: 189280 | K188: 189280
C189: 31 Gateway (Merced) | D189: 31 Gateway (Merced)Merced Community College District | E189: 418_Merced Community College District | F189: =IF(SUMMARY!$B$4=C189,MAX($F$1:F188)+1,"n/a") -> n/a | G189: Merced Community College District | H189: 574587 | I189: 574587 | J189: 501440 | K189: 501440
C190: 31 Gateway (Merced) | D190: 31 Gateway (Merced)Merced County Office of Education | E190: 224_Merced County Office of Education | F190: =IF(SUMMARY!$B$4=C190,MAX($F$1:F189)+1,"n/a") -> n/a | G190: Merced County Office of Education | H190: 132625 | I190: 132625 | J190: 153037 | K190: 153037
C191: 31 Gateway (Merced) | D191: 31 Gateway (Merced)Merced Union High School District | E191: 220_Merced Union High School District | F191: =IF(SUMMARY!$B$4=C191,MAX($F$1:F190)+1,"n/a") -> n/a | G191: Merced Union High School District | H191: 1772833 | I191: 1772833 | J191: 1795806 | K191: 1795806
C192: 32 Coastal North | D192: 32 Coastal NorthCarlsbad Unified School District | E192: 117_Carlsbad Unified School District | F192: =IF(SUMMARY!$B$4=C192,MAX($F$1:F191)+1,"n/a") -> n/a | G192: Carlsbad Unified School District | H192: 0 | I192: 0 | J192: 0 | K192: 0
C193: 32 Coastal North | D193: 32 Coastal NorthMiraCosta Community College District | E193: 417_MiraCosta Community College District | F193: =IF(SUMMARY!$B$4=C193,MAX($F$1:F192)+1,"n/a") -> n/a | G193: MiraCosta Community College District | H193: 1101772 | I193: 1101772 | J193: 1132500 | K193: 1132500
C194: 32 Coastal North | D194: 32 Coastal NorthOceanside Unified School District | E194: 116_Oceanside Unified School District | F194: =IF(SUMMARY!$B$4=C194,MAX($F$1:F193)+1,"n/a") -> n/a | G194: Oceanside Unified School District | H194: 0 | I194: 0 | J194: 0 | K194: 0
C195: 32 Coastal North | D195: 32 Coastal NorthSan Dieguito Union High School District | E195: 120_San Dieguito Union High School District | F195: =IF(SUMMARY!$B$4=C195,MAX($F$1:F194)+1,"n/a") -> n/a | G195: San Dieguito Union High School District | H195: 0 | I195: 0 | J195: 0 | K195: 0
C196: 33 Monterey | D196: 33 MontereyCarmel Unified School District | E196: 209_Carmel Unified School District | F196: =IF(SUMMARY!$B$4=C196,MAX($F$1:F195)+1,"n/a") -> n/a | G196: Carmel Unified School District | H196: 30000 | I196: 30000 | J196: 67000 | K196: 67000
C197: 33 Monterey | D197: 33 MontereyMonterey Peninsula Community College District | E197: 416_Monterey Peninsula Community College District | F197: =IF(SUMMARY!$B$4=C197,MAX($F$1:F196)+1,"n/a") -> n/a | G197: Monterey Peninsula Community College District | H197: 175217 | I197: 175217 | J197: 178233 | K197: 178233
C198: 33 Monterey | D198: 33 MontereyMonterey Peninsula Unified School District | E198: 207_Monterey Peninsula Unified School District | F198: =IF(SUMMARY!$B$4=C198,MAX($F$1:F197)+1,"n/a") -> n/a | G198: Monterey Peninsula Unified School District | H198: 753133 | I198: 753133 | J198: 750058 | K198: 750058
C199: 33 Monterey | D199: 33 MontereyPacific Grove Unified School District | E199: 206_Pacific Grove Unified School District | F199: =IF(SUMMARY!$B$4=C199,MAX($F$1:F198)+1,"n/a") -> n/a | G199: Pacific Grove Unified School District | H199: 1429216 | I199: 1429216 | J199: 1415291 | K199: 1415291
C200: 34 Mt. San Antonio | D200: 34 Mt. San AntonioBaldwin Park Unified School District | E200: 276_Baldwin Park Unified School District | F200: =IF(SUMMARY!$B$4=C200,MAX($F$1:F199)+1,"n/a") -> n/a | G200: Baldwin Park Unified School District | H200: 5499943 | I200: 5499943 | J200: 5522779 | K200: 5522779
... 254 more rows

Sheet SUMMARY
B2: r3 | D2: Consortium Expenditures Workbook
Q3: PY 15-16 Budgeted | R3: PY 15-16 Spent | S3: PY 16-17 Planned
B4: 25 Lassen | O4: AEBG Funds | Q4: =R4 -> 867080 | R4: =SUMIFS(Sheet1!H:H,Sheet1!C:C,B4) -> 867080 | S4: =SUMIFS(Sheet1!J:J,Sheet1!C:C,B4) -> 892858
O5: Program Areas | Q5: =IF(Q4=F19," - ",IF(Q4-F19>0,TEXT(Q4-F19,"$#,###")&" ▼",TEXT(ABS(Q4-F19),"$#,###")&" ▲")) -> - | R5: =IF(I19=R4," - ",IF(R4-I19>0,TEXT(R4-I19,"$#,###")&" ▼",TEXT(ABS(R4-I19),"$#,###")&" ▲")) -> $726,840 ▼ | S5: =IF(L19=S4," - ",IF(S4-L19>0,TEXT(S4-L19,"$#,###")&" ▼",TEXT(ABS(S4-L19),"$#,###")&" ▲")) -> $2,500 ▲
O6: Objectives | Q6: =IF(F27=Q4," - ",IF(Q4-F27>0,TEXT(Q4-F27,"$#,###")&" ▼",TEXT(ABS(Q4-F27),"$#,###")&" ▲")) -> - | R6: =IF(I27=R4," - ",IF(R4-I27>0,TEXT(R4-I27,"$#,###")&" ▼",TEXT(ABS(R4-I27),"$#,###")&" ▲")) -> $724,557 ▼ | S6: =IF(L27=S4," - ",IF(S4-L27>0,TEXT(S4-L27,"$#,###")&" ▼",TEXT(ABS(S4-L27),"$#,###")&" ▲")) -> $2,500 ▲
O7: Object Codes | Q7: =IF(F38=Q4," - ",IF(Q4-F38>0,TEXT(Q4-F38,"$#,###")&" ▼",TEXT(ABS(Q4-F38),"$#,###")&" ▲")) -> $190,516 ▼ | R7: =IF(I38=R4," - ",IF(R4-I38>0,TEXT(R4-I38,"$#,###")&" ▼",TEXT(ABS(R4-I38),"$#,###")&" ▲")) -> $564,210 ▼
D9: 2015 - 16 Expenditures | L9: 2016 - 17 Planned Expenditures
D10: Budgeted | G10: Spent | J10: + / -
B11: Program Areas | D11: MOE | E11: Consortium Allocations | F11: Total | G11: MOE | H11: Consortium Allocations | I11: Total | L11: AEBG | M11: WIOA | N11: Adult Perkins | O11: CalWorks | P11: LCFF | Q11: CCD Apportionment | R11: Incarcerated Adults | S11: Total
B12: 3.1a Adult education (ABE, ASE, Basic Skills) | D12: =SUMIFS(D$49:D$782,$B$49:$B$782,$B12) -> 27080 | E12: 835000 | F12: =SUM(D12:E12) -> 862080 | G12: 24941 | H12: 115298.63 | I12: =SUM(G12:H12) -> 140239.63 | J12: =IF(F12-I12=0,0,IF(F12-I12>0,TEXT(ABS(F12-I12),"$#,###")&" ▼",TEXT(ABS(F12-I12),"$#,###")&" ▲")) -> $721,840 ▼ | L12: =SUMIFS(L$49:L$782,$B$49:$B$782,$B12) -> 883358 | M12: 0 | N12: 0 | O12: 0 | P12: 0 | Q12: 0 | R12: 0 | S12: =SUM(L12:R12) -> 883358
B13: 3.1b English as a second language | D13: 0 | E13: 0 | F13: =SUM(D13:E13) -> 0 | G13: 0 | H13: 0 | I13: =SUM(G13:H13) -> 0 | J13: =IF(F13-I13=0,0,IF(F13-I13>0,TEXT(ABS(F13-I13),"$#,###")&" ▼",TEXT(ABS(F13-I13),"$#,###")&" ▲")) -> 0 | L13: 0 | M13: 0 | N13: 0 | O13: 0 | P13: 0 | Q13: 0 | R13: 0 | S13: 0
B14: 3.1c Pre-apprenticeship training | D14: 0 | E14: 0 | F14: 0 | G14: 0 | H14: 0 | I14: 0 | J14: 0 | L14: 0 | M14: 0 | N14: 0 | O14: 0 | P14: 0 | Q14: 0 | R14: 0 | S14: 0
B15: 3.1d Career and technical training | D15: 0 | E15: 5000 | F15: 5000 | G15: 0 | H15: 0 | I15: 0 | J15: $5,000 ▼ | L15: 12000 | M15: 0 | N15: 0 | O15: 0 | P15: 0 | Q15: 0 | R15: 0 | S15: 12000
B16: 3.1e Adults training to support child school success | D16: 0 | E16: 0 | F16: 0 | G16: 0 | H16: 0 | I16: 0 | J16: 0 | L16: 0 | M16: 0 | N16: 0 | O16: 0 | P16: 0 | Q16: 0 | R16: 0 | S16: 0
B17: 3.1f Older adults in the workforce | D17: 0 | E17: 0 | F17: 0 | G17: 0 | H17: 0 | I17: 0 | J17: 0 | L17: 0 | M17: 0 | N17: 0 | O17: 0 | P17: 0 | Q17: 0 | R17: 0 | S17: 0
B18: 3.1g Services to adults with disabilities | D18: 0 | E18: 0 | F18: 0 | G18: 0 | H18: 0 | I18: 0 | J18: 0 | L18: 0 | M18: 0 | N18: 0 | O18: 0 | P18: 0 | Q18: 0 | R18: 0 | S18: 0
B19: Total | D19: =SUM(D12:D18) -> 27080 | E19: 840000 | F19: =SUM(F12:F18) -> 867080 | G19: =SUM(G12:G18) -> 24941 | H19: =SUM(H12:H18) -> 115298.63 | I19: =SUM(I12:I18) -> 140239.63 | J19: =IF(F19-I19=0,0,IF(F19-I19>0,TEXT(ABS(F19-I19),"$#,###")&" ▼",TEXT(ABS(F19-I19),"$#,###")&" ▲")) -> $726,840 ▼ | L19: =SUM(L12:L18) -> 895358 | M19: 0 | N19: 0 | O19: 0 | P19: 0 | Q19: 0 | R19: 0 | S19: =SUM(S12:S18) -> 895358
B21: Objectives | D21: MOE | E21: Consortium Allocations | F21: Total | G21: MOE | H21: Consortium Allocations | I21: Total | J21: + / - | L21: AEBG | M21: WIOA | N21: Adult Perkins | O21: CalWorks | P21: LCFF | Q21: CCD Apportionment | R21: Incarcerated Adults | S21: Total
B22: 5.1a Obj. 3: Seamless Transition | D22: =SUMIFS(D$49:D$782,$B$49:$B$782,$B22) -> 0 | E22: 0 | F22: =SUM(D22:E22) -> 0 | G22: =SUMIFS(G$49:G$782,$B$49:$B$782,$B22) -> 0 | H22: 0 | I22: =SUM(G22:H22) -> 0 | J22: =IF(F22-I22=0,0,IF(F22-I22>0,TEXT(ABS(F22-I22),"$#,###")&" ▼",TEXT(ABS(F22-I22),"$#,###")&" ▲")) -> 0 | L22: =SUMIFS(L$49:L$782,$B$49:$B$782,$B22) -> 0 | M22: 0 | N22: 0 | O22: 0 | P22: 0 | Q22: 0 | R22: 0 | S22: =SUM(L22:R22) -> 0
B23: 5.1b Obj. 4: Gaps in Services | D23: 27080 | E23: 840000 | F23: =SUM(D23:E23) -> 867080 | G23: =SUMIFS(G$49:G$782,$B$49:$B$782,$B23) -> 24941 | H23: 117582.31 | I23: =SUM(G23:H23) -> 142523.31 | J23: =IF(F23-I23=0,0,IF(F23-I23>0,TEXT(ABS(F23-I23),"$#,###")&" ▼",TEXT(ABS(F23-I23),"$#,###")&" ▲")) -> $724,557 ▼ | L23: 895358 | M23: 0 | N23: 0 | O23: 0 | P23: 0 | Q23: 0 | R23: 0 | S23: =SUM(L23:R23) -> 895358
B24: 5.1c Obj. 5: Accelerated Learning | D24: 0 | E24: 0 | F24: 0 | G24: 0 | H24: 0 | I24: 0 | J24: 0 | L24: 0 | M24: 0 | N24: 0 | O24: 0 | P24: 0 | Q24: 0 | R24: 0 | S24: =SUM(L24:R24) -> 0
B25: 5.1d Obj. 6: Professional Development | D25: 0 | E25: 0 | F25: 0 | G25: 0 | H25: 0 | I25: 0 | J25: 0 | L25: 0 | M25: 0 | N25: 0 | O25: 0 | P25: 0 | Q25: 0 | R25: 0 | S25: =SUM(L25:R25) -> 0
B26: 5.1e Obj. 7: Leveraging Structures | D26: 0 | E26: 0 | F26: 0 | G26: 0 | H26: 0 | I26: 0 | J26: 0 | L26: 0 | M26: 0 | N26: 0 | O26: 0 | P26: 0 | Q26: 0 | R26: 0 | S26: =SUM(L26:R26) -> 0
B27: Total | D27: =SUM(D22:D26) -> 27080 | E27: =SUM(E22:E26) -> 840000 | F27: =SUM(F22:F26) -> 867080 | G27: =SUM(G22:G26) -> 24941 | H27: =SUM(H22:H26) -> 117582.31 | I27: =SUM(I22:I26) -> 142523.31 | J27: $724,557 ▼ | L27: =SUM(L22:L26) -> 895358 | M27: 0 | N27: 0 | O27: 0 | P27: 0 | Q27: 0 | R27: 0 | S27: =SUM(S22:S26) -> 895358
B29: Object Code | D29: MOE | E29: Consortium Allocations | F29: Total | G29: MOE | H29: Consortium Allocations | I29: Total | J29: + / -
B30: 1000 Instructional Salaries | D30: =SUMIFS(D$49:D$782,$B$49:$B$782,$B30) -> 0 | E30: 2700 | F30: =SUM(D30:E30) -> 2700 | G30: 3211 | H30: 9816.26 | I30: =SUM(G30:H30) -> 13027.26 | J30: =IF(F30-I30=0,0,IF(F30-I30>0,TEXT(ABS(F30-I30),"$#,###")&" ▼",TEXT(ABS(F30-I30),"$#,###")&" ▲")) -> $10,327 ▲
B31: 2000 NonInstructional Salaries | D31: 0 | E31: 63092 | F31: =SUM(D31:E31) -> 63092 | G31: 5302 | H31: 42954 | I31: =SUM(G31:H31) -> 48256 | J31: =IF(F31-I31=0,0,IF(F31-I31>0,TEXT(ABS(F31-I31),"$#,###")&" ▼",TEXT(ABS(F31-I31),"$#,###")&" ▲")) -> $14,836 ▼
B32: 3000 Employee Benefits | D32: 0 | E32: 31087 | F32: 31087 | G32: 2929 | H32: 19094.15 | I32: 22023.15 | J32: $9,064 ▼
B33: 4000 Supplies and Materials | D33: 0 | E33: 3016 | F33: 3016 | G33: 1722 | H33: 16355 | I33: 18077 | J33: $15,061 ▲
B34: 5000 Other Operating Expenses | D34: 0 | E34: 386169 | F34: 386169 | G34: 9350 | H34: 119210 | I34: 128560 | J34: $257,609 ▼
B35: 6000 Capital Outlay | D35: 0 | E35: 111350 | F35: 111350 | G35: 0 | H35: 31350 | I35: 31350 | J35: $80,000 ▼
B36: 7000 Other Outgo | D36: 0 | E36: 35150 | F36: 35150 | G36: 0 | H36: 35150 | I36: 35150 | J36: 0 | S36: Key
B37: Indirect / Administration | D37: =SUMIFS(D$49:D$782,$B$49:$B$782,$B37) -> 0 | E37: 44000 | F37: 44000 | G37: 2427 | H37: 4000 | I37: 6427 | J37: $37,573 ▼ | S37: ▼ = Under
B38: Total | D38: =SUM(D30:D37) -> 0 | E38: 676564 | F38: 676564 | G38: 24941 | H38: 277929.41 | I38: 302870.41 | J38: $373,694 ▼ | S38: ▲ = Over
Q40: PY 15-16 Budgeted | R40: PY 15-16 Spent | S40: PY 16-17 Planned
A41: 🔝 | B41: =IFERROR(VLOOKUP(1,Sheet1!F:G,2,FALSE),"") -> Big Valley Joint Unified School District | O41: AEBG Funds | Q41: =R41 -> 2139 | R41: =IFERROR(INDEX(Sheet1!H:H,MATCH(U49,Sheet1!E:E,0)),"") -> 2139 | S41: =IFERROR(INDEX(Sheet1!J:J,MATCH(U49,Sheet1!E:E,0)),"") -> 7500
O42: Program Areas | Q42: =IF(Q41=F56," - ",IF(Q41-F56>0,TEXT(Q41-F56,"$#,###")&" ▼",TEXT(ABS(Q41-F56),"$#,###")&" ▲")) -> - | R42: =IF(I56=R41," - ",IF(R41-I56>0,TEXT(R41-I56,"$#,###")&" ▼",TEXT(ABS(R41-I56),"$#,###")&" ▲")) -> $2,139 ▼ | S42: =IF(L56=S41," - ",IF(S41-L56>0,TEXT(S41-L56,"$#,###")&" ▼",TEXT(ABS(S41-L56),"$#,###")&" ▲")) -> $2,500 ▲
C43: =IF(ISNA(Sheet1!B43),"Please select from the list of member agencies affiliated with the selected Consortium","") ->  | O43: Objectives | Q43: =IF(F64=Q41," - ",IF(Q41-F64>0,TEXT(Q41-F64,"$#,###")&" ▼",TEXT(ABS(Q41-F64),"$#,###")&" ▲")) -> - | R43: =IF(I64=R41," - ",IF(R41-I64>0,TEXT(R41-I64,"$#,###")&" ▼",TEXT(ABS(R41-I64),"$#,###")&" ▲")) -> $2,139 ▼ | S43: =IF(L64=S41," - ",IF(S41-L64>0,TEXT(S41-L64,"$#,###")&" ▼",TEXT(ABS(S41-L64),"$#,###")&" ▲")) -> $2,500 ▲
O44: Object Codes | Q44: =IF(F75=Q41," - ",IF(Q41-F75>0,TEXT(Q41-F75,"$#,###")&" ▼",TEXT(ABS(Q41-F75),"$#,###")&" ▲")) -> $2,139 ▼ | R44: =IF(I75=R41," - ",IF(R41-I75>0,TEXT(R41-I75,"$#,###")&" ▼",TEXT(ABS(R41-I75),"$#,###")&" ▲")) -> $2,139 ▼
A45: CONSORTIUM | B45: ELEMENT | C45: na1 | D45: 15-16_MOE_EST | E45: 15-16_ALLOCATIONS_EST | F45: 15-16_TOTAL EST | G45: 15-16_MOE_ACT | H45: 15-16_ALLOCATIONS_ACT | I45: 15-16_TOTAL ACT | J45: 15-16_DIFFERENCE | K45: ITEM | L45: 16-17_AEBG | M45: 16-17_WIOA | N45: 16-17_PERKINS | O45: 16-17_CALWORKS | P45: 16-17_LCFF | Q45: 16-17_CCD | R45: 16-17_JAIL | S45: 16-17_TOTAL | T45: MEMBER_NAME_DISPLAY | U45: MEMBER_KEY | V45: SUBMISSION_KEY | W45: FILENAME
D46: 2015 - 16 Expenditures | L46: 2016 - 17 Planned Expenditures
B47: ELEMENT | C47: na1 | D47: Budgeted | G47: Spent | J47: + / -
B48: Program Areas | D48: MOE | E48: Consortium Allocations | F48: Total | G48: MOE | H48: Consortium Allocations | I48: Total | L48: AEBG | M48: WIOA | N48: Adult Perkins | O48: CalWorks | P48: LCFF | Q48: CCD Apportionment | R48: Incarcerated Adults | S48: Total
A49: =$B$4 -> 25 Lassen | B49: 3.1a Adult education (ABE, ASE, Basic Skills) | D49: 2139 | E49: 0 | F49: =SUM(D49:E49) -> 2139 | G49: 0 | H49: 0 | I49: =SUM(G49:H49) -> 0 | J49: =IF(F49-I49=0,0,IF(F49-I49>0,TEXT(ABS(F49-I49),"$#,###")&" ▼",TEXT(ABS(F49-I49),"$#,###")&" ▲")) -> $2,139 ▼ | K49: Program Areas | L49: 10000 | M49: 0 | N49: 0 | O49: 0 | P49: 0 | Q49: 0 | R49: 0 | S49: =SUM(L49:R49) -> 10000 | T49: =B41 -> Big Valley Joint Unified School District | U49: =INDEX(Sheet1!E:E,MATCH($B$4&B41,Sheet1!D:D,0)) -> 286_Big Valley Joint Unified School District | V49: =Sheet1!$B$8 -> 25-Lassen_160822173811 | W49: =Sheet1!$B$10 -> All Schools Lassen Consortium Expenditures.xlsm
A50: 25 Lassen | B50: 3.1b English as a second language | D50: 0 | E50: 0 | F50: =SUM(D50:E50) -> 0 | G50: 0 | H50: 0 | I50: =SUM(G50:H50) -> 0 | J50: =IF(F50-I50=0,0,IF(F50-I50>0,TEXT(ABS(F50-I50),"$#,###")&" ▼",TEXT(ABS(F50-I50),"$#,###")&" ▲")) -> 0 | K50: Program Areas | L50: 0 | M50: 0 | N50: 0 | O50: 0 | P50: 0 | Q50: 0 | R50: 0 | S50: 0 | T50: =T49 -> Big Valley Joint Unified School District | U50: 286_Big Valley Joint Unified School District | V50: =Sheet1!$B$8 -> 25-Lassen_160822173811 | W50: =Sheet1!$B$10 -> All Schools Lassen Consortium Expenditures.xlsm
A51: 25 Lassen | B51: 3.1c Pre-apprenticeship training | D51: 0 | E51: 0 | F51: 0 | G51: 0 | H51: 0 | I51: 0 | J51: 0 | K51: Program Areas | L51: 0 | M51: 0 | N51: 0 | O51: 0 | P51: 0 | Q51: 0 | R51: 0 | S51: 0 | T51: Big Valley Joint Unified School District | U51: 286_Big Valley Joint Unified School District | V51: =Sheet1!$B$8 -> 25-Lassen_160822173811 | W51: =Sheet1!$B$10 -> All Schools Lassen Consortium Expenditures.xlsm
A52: 25 Lassen | B52: 3.1d Career and technical training | D52: 0 | E52: 0 | F52: 0 | G52: 0 | H52: 0 | I52: 0 | J52: 0 | K52: Program Areas | L52: 0 | M52: 0 | N52: 0 | O52: 0 | P52: 0 | Q52: 0 | R52: 0 | S52: 0 | T52: Big Valley Joint Unified School District | U52: 286_Big Valley Joint Unified School District | V52: =Sheet1!$B$8 -> 25-Lassen_160822173811 | W52: =Sheet1!$B$10 -> All Schools Lassen Consortium Expenditures.xlsm
A53: 25 Lassen | B53: 3.1e Adults training to support child school success | D53: 0 | E53: 0 | F53: 0 | G53: 0 | H53: 0 | I53: 0 | J53: 0 | K53: Program Areas | L53: 0 | M53: 0 | N53: 0 | O53: 0 | P53: 0 | Q53: 0 | R53: 0 | S53: 0 | T53: Big Valley Joint Unified School District | U53: 286_Big Valley Joint Unified School District | V53: =Sheet1!$B$8 -> 25-Lassen_160822173811 | W53: =Sheet1!$B$10 -> All Schools Lassen Consortium Expenditures.xlsm
A54: 25 Lassen | B54: 3.1f Older adults in the workforce | D54: 0 | E54: 0 | F54: 0 | G54: 0 | H54: 0 | I54: 0 | J54: 0 | K54: Program Areas | L54: 0 | M54: 0 | N54: 0 | O54: 0 | P54: 0 | Q54: 0 | R54: 0 | S54: 0 | T54: Big Valley Joint Unified School District | U54: 286_Big Valley Joint Unified School District | V54: =Sheet1!$B$8 -> 25-Lassen_160822173811 | W54: =Sheet1!$B$10 -> All Schools Lassen Consortium Expenditures.xlsm
A55: 25 Lassen | B55: 3.1g Services to adults with disabilities | D55: 0 | E55: 0 | F55: 0 | G55: 0 | H55: 0 | I55: 0 | J55: 0 | K55: Program Areas | L55: 0 | M55: 0 | N55: 0 | O55: 0 | P55: 0 | Q55: 0 | R55: 0 | S55: 0 | T55: Big Valley Joint Unified School District | U55: 286_Big Valley Joint Unified School District | V55: =Sheet1!$B$8 -> 25-Lassen_160822173811 | W55: =Sheet1!$B$10 -> All Schools Lassen Consortium Expenditures.xlsm
B56: Total | D56: =SUM(D49:D55) -> 2139 | E56: 0 | F56: =SUM(F49:F55) -> 2139 | G56: =SUM(G49:G55) -> 0 | H56: =SUM(H49:H55) -> 0 | I56: =SUM(I49:I55) -> 0 | J56: =IF(F56-I56=0,0,IF(F56-I56>0,TEXT(ABS(F56-I56),"$#,###")&" ▼",TEXT(ABS(F56-I56),"$#,###")&" ▲")) -> $2,139 ▼ | L56: =SUM(L49:L55) -> 10000 | M56: 0 | N56: 0 | O56: 0 | P56: 0 | Q56: 0 | R56: 0 | S56: =SUM(S49:S55) -> 10000
B58: Objectives | D58: MOE | E58: Consortium Allocations | F58: Total | G58: MOE | H58: Consortium Allocations | I58: Total | J58: + / - | L58: AEBG | M58: WIOA | N58: Adult Perkins | O58: CalWorks | P58: LCFF | Q58: CCD Apportionment | R58: Incarcerated Adults | S58: Total
A59: =$B$4 -> 25 Lassen | B59: 5.1a Obj. 3: Seamless Transition | E59: 0 | F59: =SUM(D59:E59) -> 0 | G59: 0 | H59: 0 | I59: =SUM(G59:H59) -> 0 | J59: =IF(F59-I59=0,0,IF(F59-I59>0,TEXT(ABS(F59-I59),"$#,###")&" ▼",TEXT(ABS(F59-I59),"$#,###")&" ▲")) -> 0 | K59: Objectives | L59: 0 | M59: 0 | N59: 0 | O59: 0 | P59: 0 | Q59: 0 | R59: 0 | S59: =SUM(L59:R59) -> 0 | T59: =T55 -> Big Valley Joint Unified School District | U59: =U55 -> 286_Big Valley Joint Unified School District | V59: =V55 -> 25-Lassen_160822173811 | W59: =W55 -> All Schools Lassen Consortium Expenditures.xlsm
A60: =$B$4 -> 25 Lassen | B60: 5.1b Obj. 4: Gaps in Services | D60: 2139 | E60: 0 | F60: =SUM(D60:E60) -> 2139 | G60: 0 | H60: 0 | I60: =SUM(G60:H60) -> 0 | J60: =IF(F60-I60=0,0,IF(F60-I60>0,TEXT(ABS(F60-I60),"$#,###")&" ▼",TEXT(ABS(F60-I60),"$#,###")&" ▲")) -> $2,139 ▼ | K60: Objectives | L60: 10000 | M60: 0 | N60: 0 | O60: 0 | P60: 0 | Q60: 0 | R60: 0 | S60: =SUM(L60:R60) -> 10000 | T60: =T59 -> Big Valley Joint Unified School District | U60: 286_Big Valley Joint Unified School District | V60: 25-Lassen_160822173811 | W60: All Schools Lassen Consortium Expenditures.xlsm
A61: =$B$4 -> 25 Lassen | B61: 5.1c Obj. 5: Accelerated Learning | D61: 0 | E61: 0 | F61: 0 | G61: 0 | H61: 0 | I61: 0 | J61: 0 | K61: Objectives | L61: 0 | M61: 0 | N61: 0 | O61: 0 | P61: 0 | Q61: 0 | R61: 0 | S61: =SUM(L61:R61) -> 0 | T61: Big Valley Joint Unified School District | U61: 286_Big Valley Joint Unified School District | V61: 25-Lassen_160822173811 | W61: All Schools Lassen Consortium Expenditures.xlsm
A62: =$B$4 -> 25 Lassen | B62: 5.1d Obj. 6: Professional Development | D62: 0 | E62: 0 | F62: 0 | G62: 0 | H62: 0 | I62: 0 | J62: 0 | K62: Objectives | L62: 0 | M62: 0 | N62: 0 | O62: 0 | P62: 0 | Q62: 0 | R62: 0 | S62: =SUM(L62:R62) -> 0 | T62: Big Valley Joint Unified School District | U62: 286_Big Valley Joint Unified School District | V62: 25-Lassen_160822173811 | W62: All Schools Lassen Consortium Expenditures.xlsm
A63: =$B$4 -> 25 Lassen | B63: 5.1e Obj. 7: Leveraging Structures | D63: 0 | E63: 0 | F63: 0 | G63: 0 | H63: 0 | I63: 0 | J63: 0 | K63: Objectives | L63: 0 | M63: 0 | N63: 0 | O63: 0 | P63: 0 | Q63: 0 | R63: 0 | S63: =SUM(L63:R63) -> 0 | T63: Big Valley Joint Unified School District | U63: 286_Big Valley Joint Unified School District | V63: 25-Lassen_160822173811 | W63: All Schools Lassen Consortium Expenditures.xlsm
B64: Total | D64: =SUM(D59:D63) -> 2139 | E64: 0 | F64: =SUM(F59:F63) -> 2139 | G64: =SUM(G59:G63) -> 0 | H64: =SUM(H59:H63) -> 0 | I64: =SUM(I59:I63) -> 0 | J64: $2,139 ▼ | L64: =SUM(L59:L63) -> 10000 | M64: 0 | N64: 0 | O64: 0 | P64: 0 | Q64: 0 | R64: 0 | S64: =SUM(S59:S63) -> 10000
B66: Object Code | D66: MOE | E66: Consortium Allocations | F66: Total | G66: MOE | H66: Consortium Allocations | I66: Total | J66: + / -
A67: =$B$4 -> 25 Lassen | B67: 1000 Instructional Salaries | D67: 0 | E67: 0 | F67: =SUM(D67:E67) -> 0 | G67: 0 | H67: 0 | I67: =SUM(G67:H67) -> 0 | J67: =IF(F67-I67=0,0,IF(F67-I67>0,TEXT(ABS(F67-I67),"$#,###")&" ▼",TEXT(ABS(F67-I67),"$#,###")&" ▲")) -> 0 | K67: Object Codes | T67: =T63 -> Big Valley Joint Unified School District | U67: =U63 -> 286_Big Valley Joint Unified School District | V67: =V63 -> 25-Lassen_160822173811 | W67: =W63 -> All Schools Lassen Consortium Expenditures.xlsm
A68: =$B$4 -> 25 Lassen | B68: 2000 NonInstructional Salaries | D68: 0 | E68: 0 | F68: =SUM(D68:E68) -> 0 | G68: 0 | H68: 0 | I68: =SUM(G68:H68) -> 0 | J68: =IF(F68-I68=0,0,IF(F68-I68>0,TEXT(ABS(F68-I68),"$#,###")&" ▼",TEXT(ABS(F68-I68),"$#,###")&" ▲")) -> 0 | K68: Object Codes | T68: =T67 -> Big Valley Joint Unified School District | U68: 286_Big Valley Joint Unified School District | V68: 25-Lassen_160822173811 | W68: All Schools Lassen Consortium Expenditures.xlsm
A69: =A68 -> 25 Lassen | B69: 3000 Employee Benefits | D69: 0 | E69: 0 | F69: 0 | G69: 0 | H69: 0 | I69: 0 | J69: 0 | K69: Object Codes | T69: Big Valley Joint Unified School District | U69: 286_Big Valley Joint Unified School District | V69: 25-Lassen_160822173811 | W69: All Schools Lassen Consortium Expenditures.xlsm
A70: 25 Lassen | B70: 4000 Supplies and Materials | D70: 0 | E70: 0 | F70: 0 | G70: 0 | H70: 0 | I70: 0 | J70: 0 | K70: Object Codes | T70: Big Valley Joint Unified School District | U70: 286_Big Valley Joint Unified School District | V70: 25-Lassen_160822173811 | W70: All Schools Lassen Consortium Expenditures.xlsm
A71: 25 Lassen | B71: 5000 Other Operating Expenses | D71: 0 | E71: 0 | F71: 0 | G71: 0 | H71: 0 | I71: 0 | J71: 0 | K71: Object Codes | T71: Big Valley Joint Unified School District | U71: 286_Big Valley Joint Unified School District | V71: 25-Lassen_160822173811 | W71: All Schools Lassen Consortium Expenditures.xlsm
A72: 25 Lassen | B72: 6000 Capital Outlay | D72: 0 | E72: 0 | F72: 0 | G72: 0 | H72: 0 | I72: 0 | J72: 0 | K72: Object Codes | T72: Big Valley Joint Unified School District | U72: 286_Big Valley Joint Unified School District | V72: 25-Lassen_160822173811 | W72: All Schools Lassen Consortium Expenditures.xlsm
A73: 25 Lassen | B73: 7000 Other Outgo | D73: 0 | E73: 0 | F73: 0 | G73: 0 | H73: 0 | I73: 0 | J73: 0 | K73: Object Codes | S73: Key | T73: Big Valley Joint Unified School District | U73: 286_Big Valley Joint Unified School District | V73: 25-Lassen_160822173811 | W73: All Schools Lassen Consortium Expenditures.xlsm
A74: 25 Lassen | B74: Indirect / Administration | D74: 0 | E74: 0 | F74: 0 | G74: 0 | H74: 0 | I74: 0 | J74: 0 | K74: Object Codes | S74: ▼ = Under | T74: Big Valley Joint Unified School District | U74: 286_Big Valley Joint Unified School District | V74: 25-Lassen_160822173811 | W74: All Schools Lassen Consortium Expenditures.xlsm
B75: Total | D75: =SUM(D67:D74) -> 0 | E75: 0 | F75: 0 | G75: 0 | H75: 0 | I75: 0 | J75: 0 | S75: ▲ = Over
Q77: PY 15-16 Budgeted | R77: PY 15-16 Spent | S77: PY 16-17 Planned
A78: 🔝 | B78: =IFERROR(VLOOKUP(2,Sheet1!F:G,2,FALSE),"") -> Fort Sage Unified School District | O78: AEBG Funds | Q78: =R78 -> 0 | R78: =IFERROR(INDEX(Sheet1!H:H,MATCH(U86,Sheet1!E:E,0)),"") -> 0 | S78: =IFERROR(INDEX(Sheet1!J:J,MATCH(U86,Sheet1!E:E,0)),"") -> 15000
O79: Program Areas | Q79: =IF(Q78=F93," - ",IF(Q78-F93>0,TEXT(Q78-F93,"$#,###")&" ▼",TEXT(ABS(Q78-F93),"$#,###")&" ▲")) -> - | R79: =IF(I93=R78," - ",IF(R78-I93>0,TEXT(R78-I93,"$#,###")&" ▼",TEXT(ABS(R78-I93),"$#,###")&" ▲")) -> - | S79: =IF(L93=S78," - ",IF(S78-L93>0,TEXT(S78-L93,"$#,###")&" ▼",TEXT(ABS(S78-L93),"$#,###")&" ▲")) -> -
C80: =IF(ISNA(Sheet1!B80),"Please select from the list of member agencies affiliated with the selected Consortium","") ->  | O80: Objectives | Q80: =IF(F101=Q78," - ",IF(Q78-F101>0,TEXT(Q78-F101,"$#,###")&" ▼",TEXT(ABS(Q78-F101),"$#,###")&" ▲")) -> - | R80: =IF(I101=R78," - ",IF(R78-I101>0,TEXT(R78-I101,"$#,###")&" ▼",TEXT(ABS(R78-I101),"$#,###")&" ▲")) -> - | S80: =IF(L101=S78," - ",IF(S78-L101>0,TEXT(S78-L101,"$#,###")&" ▼",TEXT(ABS(S78-L101),"$#,###")&" ▲")) -> -
O81: Object Codes | Q81: =IF(F112=Q78," - ",IF(Q78-F112>0,TEXT(Q78-F112,"$#,###")&" ▼",TEXT(ABS(Q78-F112),"$#,###")&" ▲")) -> - | R81: =IF(I112=R78," - ",IF(R78-I112>0,TEXT(R78-I112,"$#,###")&" ▼",TEXT(ABS(R78-I112),"$#,###")&" ▲")) -> -
D83: 2015 - 16 Expenditures | L83: 2016 - 17 Planned Expenditures
A84: CONSORTIUM | B84: ELEMENT | C84: na1 | D84: Budgeted | G84: Spent | J84: + / -
B85: Program Areas | D85: MOE | E85: Consortium Allocations | F85: Total | G85: MOE | H85: Consortium Allocations | I85: Total | L85: AEBG | M85: WIOA | N85: Adult Perkins | O85: CalWorks | P85: LCFF | Q85: CCD Apportionment | R85: Incarcerated Adults | S85: Total
A86: =$B$4 -> 25 Lassen | B86: 3.1a Adult education (ABE, ASE, Basic Skills) | D86: 0 | E86: 0 | F86: =SUM(D86:E86) -> 0 | G86: 0 | H86: 0 | I86: =SUM(G86:H86) -> 0 | J86: =IF(F86-I86=0,0,IF(F86-I86>0,TEXT(ABS(F86-I86),"$#,###")&" ▼",TEXT(ABS(F86-I86),"$#,###")&" ▲")) -> 0 | K86: Program Areas | L86: 15000 | M86: 0 | N86: 0 | O86: 0 | P86: 0 | Q86: 0 | R86: 0 | S86: =SUM(L86:R86) -> 15000 | T86: =B78 -> Fort Sage Unified School District | U86: =INDEX(Sheet1!E:E,MATCH($B$4&B78,Sheet1!D:D,0)) -> 283_Fort Sage Unified School District | V86: =Sheet1!$B$8 -> 25-Lassen_160822173811 | W86: =Sheet1!$B$10 -> All Schools Lassen Consortium Expenditures.xlsm
A87: 25 Lassen | B87: 3.1b English as a second language | D87: 0 | E87: 0 | F87: =SUM(D87:E87) -> 0 | G87: 0 | H87: 0 | I87: =SUM(G87:H87) -> 0 | J87: =IF(F87-I87=0,0,IF(F87-I87>0,TEXT(ABS(F87-I87),"$#,###")&" ▼",TEXT(ABS(F87-I87),"$#,###")&" ▲")) -> 0 | K87: Program Areas | L87: 0 | M87: 0 | N87: 0 | O87: 0 | P87: 0 | Q87: 0 | R87: 0 | S87: 0 | T87: =T86 -> Fort Sage Unified School District | U87: 283_Fort Sage Unified School District | V87: =Sheet1!$B$8 -> 25-Lassen_160822173811 | W87: =Sheet1!$B$10 -> All Schools Lassen Consortium Expenditures.xlsm
A88: 25 Lassen | B88: 3.1c Pre-apprenticeship training | D88: 0 | E88: 0 | F88: 0 | G88: 0 | H88: 0 | I88: 0 | J88: 0 | K88: Program Areas | L88: 0 | M88: 0 | N88: 0 | O88: 0 | P88: 0 | Q88: 0 | R88: 0 | S88: 0 | T88: Fort Sage Unified School District | U88: 283_Fort Sage Unified School District | V88: =Sheet1!$B$8 -> 25-Lassen_160822173811 | W88: =Sheet1!$B$10 -> All Schools Lassen Consortium Expenditures.xlsm
A89: 25 Lassen | B89: 3.1d Career and technical training | D89: 0 | E89: 0 | F89: 0 | G89: 0 | H89: 0 | I89: 0 | J89: 0 | K89: Program Areas | L89: 0 | M89: 0 | N89: 0 | O89: 0 | P89: 0 | Q89: 0 | R89: 0 | S89: 0 | T89: Fort Sage Unified School District | U89: 283_Fort Sage Unified School District | V89: =Sheet1!$B$8 -> 25-Lassen_160822173811 | W89: =Sheet1!$B$10 -> All Schools Lassen Consortium Expenditures.xlsm
A90: 25 Lassen | B90: 3.1e Adults training to support child school success | D90: 0 | E90: 0 | F90: 0 | G90: 0 | H90: 0 | I90: 0 | J90: 0 | K90: Program Areas | L90: 0 | M90: 0 | N90: 0 | O90: 0 | P90: 0 | Q90: 0 | R90: 0 | S90: 0 | T90: Fort Sage Unified School District | U90: 283_Fort Sage Unified School District | V90: =Sheet1!$B$8 -> 25-Lassen_160822173811 | W90: =Sheet1!$B$10 -> All Schools Lassen Consortium Expenditures.xlsm
A91: 25 Lassen | B91: 3.1f Older adults in the workforce | D91: 0 | E91: 0 | F91: 0 | G91: 0 | H91: 0 | I91: 0 | J91: 0 | K91: Program Areas | L91: 0 | M91: 0 | N91: 0 | O91: 0 | P91: 0 | Q91: 0 | R91: 0 | S91: 0 | T91: Fort Sage Unified School District | U91: 283_Fort Sage Unified School District | V91: =Sheet1!$B$8 -> 25-Lassen_160822173811 | W91: =Sheet1!$B$10 -> All Schools Lassen Consortium Expenditures.xlsm
A92: 25 Lassen | B92: 3.1g Services to adults with disabilities | D92: 0 | E92: 0 | F92: 0 | G92: 0 | H92: 0 | I92: 0 | J92: 0 | K92: Program Areas | L92: 0 | M92: 0 | N92: 0 | O92: 0 | P92: 0 | Q92: 0 | R92: 0 | S92: 0 | T92: Fort Sage Unified School District | U92: 283_Fort Sage Unified School District | V92: =Sheet1!$B$8 -> 25-Lassen_160822173811 | W92: =Sheet1!$B$10 -> All Schools Lassen Consortium Expenditures.xlsm
B93: Total | D93: =SUM(D86:D92) -> 0 | E93: 0 | F93: =SUM(F86:F92) -> 0 | G93: =SUM(G86:G92) -> 0 | H93: =SUM(H86:H92) -> 0 | I93: =SUM(I86:I92) -> 0 | J93: =IF(F93-I93=0,0,IF(F93-I93>0,TEXT(ABS(F93-I93),"$#,###")&" ▼",TEXT(ABS(F93-I93),"$#,###")&" ▲")) -> 0 | L93: =SUM(L86:L92) -> 15000 | M93: 0 | N93: 0 | O93: 0 | P93: 0 | Q93: 0 | R93: 0 | S93: =SUM(S86:S92) -> 15000
B95: Objectives | D95: MOE | E95: Consortium Allocations | F95: Total | G95: MOE | H95: Consortium Allocations | I95: Total | J95: + / - | L95: AEBG | M95: WIOA | N95: Adult Perkins | O95: CalWorks | P95: LCFF | Q95: CCD Apportionment | R95: Incarcerated Adults | S95: Total
A96: =$B$4 -> 25 Lassen | B96: 5.1a Obj. 3: Seamless Transition | D96: 0 | E96: 0 | F96: =SUM(D96:E96) -> 0 | G96: 0 | H96: 0 | I96: =SUM(G96:H96) -> 0 | J96: =IF(F96-I96=0,0,IF(F96-I96>0,TEXT(ABS(F96-I96),"$#,###")&" ▼",TEXT(ABS(F96-I96),"$#,###")&" ▲")) -> 0 | K96: Objectives | L96: 0 | M96: 0 | N96: 0 | O96: 0 | P96: 0 | Q96: 0 | R96: 0 | S96: =SUM(L96:R96) -> 0 | T96: =T92 -> Fort Sage Unified School District | U96: =U92 -> 283_Fort Sage Unified School District | V96: =V92 -> 25-Lassen_160822173811 | W96: =W92 -> All Schools Lassen Consortium Expenditures.xlsm
A97: =$B$4 -> 25 Lassen | B97: 5.1b Obj. 4: Gaps in Services | D97: 0 | E97: 0 | F97: =SUM(D97:E97) -> 0 | G97: 0 | H97: 0 | I97: =SUM(G97:H97) -> 0 | J97: =IF(F97-I97=0,0,IF(F97-I97>0,TEXT(ABS(F97-I97),"$#,###")&" ▼",TEXT(ABS(F97-I97),"$#,###")&" ▲")) -> 0 | K97: Objectives | L97: 15000 | M97: 0 | N97: 0 | O97: 0 | P97: 0 | Q97: 0 | R97: 0 | S97: =SUM(L97:R97) -> 15000 | T97: =T96 -> Fort Sage Unified School District | U97: 283_Fort Sage Unified School District | V97: 25-Lassen_160822173811 | W97: All Schools Lassen Consortium Expenditures.xlsm
A98: =$B$4 -> 25 Lassen | B98: 5.1c Obj. 5: Accelerated Learning | D98: 0 | E98: 0 | F98: 0 | G98: 0 | H98: 0 | I98: 0 | J98: 0 | K98: Objectives | L98: 0 | M98: 0 | N98: 0 | O98: 0 | P98: 0 | Q98: 0 | R98: 0 | S98: =SUM(L98:R98) -> 0 | T98: Fort Sage Unified School District | U98: 283_Fort Sage Unified School District | V98: 25-Lassen_160822173811 | W98: All Schools Lassen Consortium Expenditures.xlsm
A99: =$B$4 -> 25 Lassen | B99: 5.1d Obj. 6: Professional Development | D99: 0 | E99: 0 | F99: 0 | G99: 0 | H99: 0 | I99: 0 | J99: 0 | K99: Objectives | L99: 0 | M99: 0 | N99: 0 | O99: 0 | P99: 0 | Q99: 0 | R99: 0 | S99: =SUM(L99:R99) -> 0 | T99: Fort Sage Unified School District | U99: 283_Fort Sage Unified School District | V99: 25-Lassen_160822173811 | W99: All Schools Lassen Consortium Expenditures.xlsm
A100: =$B$4 -> 25 Lassen | B100: 5.1e Obj. 7: Leveraging Structures | D100: 0 | E100: 0 | F100: 0 | G100: 0 | H100: 0 | I100: 0 | J100: 0 | K100: Objectives | L100: 0 | M100: 0 | N100: 0 | O100: 0 | P100: 0 | Q100: 0 | R100: 0 | S100: =SUM(L100:R100) -> 0 | T100: Fort Sage Unified School District | U100: 283_Fort Sage Unified School District | V100: 25-Lassen_160822173811 | W100: All Schools Lassen Consortium Expenditures.xlsm
B101: Total | D101: =SUM(D96:D100) -> 0 | E101: 0 | F101: =SUM(F96:F100) -> 0 | G101: =SUM(G96:G100) -> 0 | H101: =SUM(H96:H100) -> 0 | I101: =SUM(I96:I100) -> 0 | J101: 0 | L101: =SUM(L96:L100) -> 15000 | M101: 0 | N101: 0 | O101: 0 | P101: 0 | Q101: 0 | R101: 0 | S101: =SUM(S96:S100) -> 15000
B103: Object Code | D103: MOE | E103: Consortium Allocations | F103: Total | G103: MOE | H103: Consortium Allocations | I103: Total | J103: + / -
A104: =$B$4 -> 25 Lassen | B104: 1000 Instructional Salaries | D104: 0 | E104: 0 | F104: =SUM(D104:E104) -> 0 | G104: 0 | H104: 0 | I104: =SUM(G104:H104) -> 0 | J104: =IF(F104-I104=0,0,IF(F104-I104>0,TEXT(ABS(F104-I104),"$#,###")&" ▼",TEXT(ABS(F104-I104),"$#,###")&" ▲")) -> 0 | K104: Object Codes | T104: =T100 -> Fort Sage Unified School District | U104: =U100 -> 283_Fort Sage Unified School District | V104: =V100 -> 25-Lassen_160822173811 | W104: =W100 -> All Schools Lassen Consortium Expenditures.xlsm
A105: =$B$4 -> 25 Lassen | B105: 2000 NonInstructional Salaries | D105: 0 | E105: 0 | F105: =SUM(D105:E105) -> 0 | G105: 0 | H105: 0 | I105: =SUM(G105:H105) -> 0 | J105: =IF(F105-I105=0,0,IF(F105-I105>0,TEXT(ABS(F105-I105),"$#,###")&" ▼",TEXT(ABS(F105-I105),"$#,###")&" ▲")) -> 0 | K105: Object Codes | T105: =T104 -> Fort Sage Unified School District | U105: 283_Fort Sage Unified School District | V105: 25-Lassen_160822173811 | W105: All Schools Lassen Consortium Expenditures.xlsm
A106: =A105 -> 25 Lassen | B106: 3000 Employee Benefits | D106: 0 | E106: 0 | F106: 0 | G106: 0 | H106: 0 | I106: 0 | J106: 0 | K106: Object Codes | T106: Fort Sage Unified School District | U106: 283_Fort Sage Unified School District | V106: 25-Lassen_160822173811 | W106: All Schools Lassen Consortium Expenditures.xlsm
A107: 25 Lassen | B107: 4000 Supplies and Materials | D107: 0 | E107: 0 | F107: 0 | G107: 0 | H107: 0 | I107: 0 | J107: 0 | K107: Object Codes | T107: Fort Sage Unified School District | U107: 283_Fort Sage Unified School District | V107: 25-Lassen_160822173811 | W107: All Schools Lassen Consortium Expenditures.xlsm
A108: 25 Lassen | B108: 5000 Other Operating Expenses | D108: 0 | E108: 0 | F108: 0 | G108: 0 | H108: 0 | I108: 0 | J108: 0 | K108: Object Codes | T108: Fort Sage Unified School District | U108: 283_Fort Sage Unified School District | V108: 25-Lassen_160822173811 | W108: All Schools Lassen Consortium Expenditures.xlsm
A109: 25 Lassen | B109: 6000 Capital Outlay | D109: 0 | E109: 0 | F109: 0 | G109: 0 | H109: 0 | I109: 0 | J109: 0 | K109: Object Codes | T109: Fort Sage Unified School District | U109: 283_Fort Sage Unified School District | V109: 25-Lassen_160822173811 | W109: All Schools Lassen Consortium Expenditures.xlsm
A110: 25 Lassen | B110: 7000 Other Outgo | D110: 0 | E110: 0 | F110: 0 | G110: 0 | H110: 0 | I110: 0 | J110: 0 | K110: Object Codes | S110: Key | T110: Fort Sage Unified School District | U110: 283_Fort Sage Unified School District | V110: 25-Lassen_160822173811 | W110: All Schools Lassen Consortium Expenditures.xlsm
A111: 25 Lassen | B111: Indirect / Administration | D111: 0 | E111: 0 | F111: 0 | G111: 0 | H111: 0 | I111: 0 | J111: 0 | K111: Object Codes | S111: ▼ = Under | T111: Fort Sage Unified School District | U111: 283_Fort Sage Unified School District | V111: 25-Lassen_160822173811 | W111: All Schools Lassen Consortium Expenditures.xlsm
B112: Total | D112: =SUM(D104:D111) -> 0 | E112: 0 | F112: 0 | G112: 0 | H112: 0 | I112: 0 | J112: 0 | S112: ▲ = Over
Q115: PY 15-16 Budgeted | R115: PY 15-16 Spent | S115: PY 16-17 Planned
A116: 🔝 | B116: =IFERROR(VLOOKUP(3,Sheet1!F:G,2,FALSE),"") -> Lassen Community College District | O116: AEBG Funds | Q116: =R116 -> 662929 | R116: =IFERROR(INDEX(Sheet1!H:H,MATCH(U124,Sheet1!E:E,0)),"") -> 662929 | S116: =IFERROR(INDEX(Sheet1!J:J,MATCH(U124,Sheet1!E:E,0)),"") -> 661346
O117: Program Areas | Q117: =IF(Q116=F131," - ",IF(Q116-F131>0,TEXT(Q116-F131,"$#,###")&" ▼",TEXT(ABS(Q116-F131),"$#,###")&" ▲")) -> - | R117: =IF(I131=R116," - ",IF(R116-I131>0,TEXT(R116-I131,"$#,###")&" ▼",TEXT(ABS(R116-I131),"$#,###")&" ▲")) -> $662,929 ▼ | S117: =IF(L131=S116," - ",IF(S116-L131>0,TEXT(S116-L131,"$#,###")&" ▼",TEXT(ABS(S116-L131),"$#,###")&" ▲")) -> -
C118: =IF(ISNA(Sheet1!B118),"Please select from the list of member agencies affiliated with the selected Consortium","") ->  | O118: Objectives | Q118: =IF(F139=Q116," - ",IF(Q116-F139>0,TEXT(Q116-F139,"$#,###")&" ▼",TEXT(ABS(Q116-F139),"$#,###")&" ▲")) -> - | R118: =IF(I139=R116," - ",IF(R116-I139>0,TEXT(R116-I139,"$#,###")&" ▼",TEXT(ABS(R116-I139),"$#,###")&" ▲")) -> $662,929 ▼ | S118: =IF(L139=S116," - ",IF(S116-L139>0,TEXT(S116-L139,"$#,###")&" ▼",TEXT(ABS(S116-L139),"$#,###")&" ▲")) -> -
O119: Object Codes | Q119: =IF(F150=Q116," - ",IF(Q116-F150>0,TEXT(Q116-F150,"$#,###")&" ▼",TEXT(ABS(Q116-F150),"$#,###")&" ▲")) -> $81,365 ▼ | R119: =IF(I150=R116," - ",IF(R116-I150>0,TEXT(R116-I150,"$#,###")&" ▼",TEXT(ABS(R116-I150),"$#,###")&" ▲")) -> $500,258 ▼
D121: 2015 - 16 Expenditures | L121: 2016 - 17 Planned Expenditures
D122: Budgeted | G122: Spent | J122: + / -
B123: Program Areas | D123: MOE | E123: Consortium Allocations | F123: Total | G123: MOE | H123: Consortium Allocations | I123: Total | L123: AEBG | M123: WIOA | N123: Adult Perkins | O123: CalWorks | P123: LCFF | Q123: CCD Apportionment | R123: Incarcerated Adults | S123: Total
A124: =$B$4 -> 25 Lassen | B124: 3.1a Adult education (ABE, ASE, Basic Skills) | D124: 0 | E124: 662929 | F124: =SUM(D124:E124) -> 662929 | G124: 0 | H124: 0 | I124: =SUM(G124:H124) -> 0 | J124: =IF(F124-I124=0,0,IF(F124-I124>0,TEXT(ABS(F124-I124),"$#,###")&" ▼",TEXT(ABS(F124-I124),"$#,###")&" ▲")) -> $662,929 ▼ | K124: Program Areas | L124: 661346 | M124: 0 | N124: 0 | O124: 0 | P124: 0 | Q124: 0 | R124: 0 | S124: =SUM(L124:R124) -> 661346 | T124: =B116 -> Lassen Community College District | U124: =INDEX(Sheet1!E:E,MATCH($B$4&B116,Sheet1!D:D,0)) -> 424_Lassen Community College District | V124: =Sheet1!$B$8 -> 25-Lassen_160822173811 | W124: =Sheet1!$B$10 -> All Schools Lassen Consortium Expenditures.xlsm
A125: 25 Lassen | B125: 3.1b English as a second language | D125: 0 | E125: 0 | F125: =SUM(D125:E125) -> 0 | G125: 0 | H125: 0 | I125: =SUM(G125:H125) -> 0 | J125: =IF(F125-I125=0,0,IF(F125-I125>0,TEXT(ABS(F125-I125),"$#,###")&" ▼",TEXT(ABS(F125-I125),"$#,###")&" ▲")) -> 0 | K125: Program Areas | L125: 0 | M125: 0 | N125: 0 | O125: 0 | P125: 0 | Q125: 0 | R125: 0 | S125: 0 | T125: =T124 -> Lassen Community College District | U125: 424_Lassen Community College District | V125: =Sheet1!$B$8 -> 25-Lassen_160822173811 | W125: =Sheet1!$B$10 -> All Schools Lassen Consortium Expenditures.xlsm
A126: 25 Lassen | B126: 3.1c Pre-apprenticeship training | D126: 0 | E126: 0 | F126: 0 | G126: 0 | H126: 0 | I126: 0 | J126: 0 | K126: Program Areas | L126: 0 | M126: 0 | N126: 0 | O126: 0 | P126: 0 | Q126: 0 | R126: 0 | S126: 0 | T126: Lassen Community College District | U126: 424_Lassen Community College District | V126: =Sheet1!$B$8 -> 25-Lassen_160822173811 | W126: =Sheet1!$B$10 -> All Schools Lassen Consortium Expenditures.xlsm
A127: 25 Lassen | B127: 3.1d Career and technical training | D127: 0 | E127: 0 | F127: 0 | G127: 0 | H127: 0 | I127: 0 | J127: 0 | K127: Program Areas | L127: 0 | M127: 0 | N127: 0 | O127: 0 | P127: 0 | Q127: 0 | R127: 0 | S127: 0 | T127: Lassen Community College District | U127: 424_Lassen Community College District | V127: =Sheet1!$B$8 -> 25-Lassen_160822173811 | W127: =Sheet1!$B$10 -> All Schools Lassen Consortium Expenditures.xlsm
A128: 25 Lassen | B128: 3.1e Adults training to support child school success | D128: 0 | E128: 0 | F128: 0 | G128: 0 | H128: 0 | I128: 0 | J128: 0 | K128: Program Areas | L128: 0 | M128: 0 | N128: 0 | O128: 0 | P128: 0 | Q128: 0 | R128: 0 | S128: 0 | T128: Lassen Community College District | U128: 424_Lassen Community College District | V128: =Sheet1!$B$8 -> 25-Lassen_160822173811 | W128: =Sheet1!$B$10 -> All Schools Lassen Consortium Expenditures.xlsm
A129: 25 Lassen | B129: 3.1f Older adults in the workforce | D129: 0 | E129: 0 | F129: 0 | G129: 0 | H129: 0 | I129: 0 | J129: 0 | K129: Program Areas | L129: 0 | M129: 0 | N129: 0 | O129: 0 | P129: 0 | Q129: 0 | R129: 0 | S129: 0 | T129: Lassen Community College District | U129: 424_Lassen Community College District | V129: =Sheet1!$B$8 -> 25-Lassen_160822173811 | W129: =Sheet1!$B$10 -> All Schools Lassen Consortium Expenditures.xlsm
A130: 25 Lassen | B130: 3.1g Services to adults with disabilities | D130: 0 | E130: 0 | F130: 0 | G130: 0 | H130: 0 | I130: 0 | J130: 0 | K130: Program Areas | L130: 0 | M130: 0 | N130: 0 | O130: 0 | P130: 0 | Q130: 0 | R130: 0 | S130: 0 | T130: Lassen Community College District | U130: 424_Lassen Community College District | V130: =Sheet1!$B$8 -> 25-Lassen_160822173811 | W130: =Sheet1!$B$10 -> All Schools Lassen Consortium Expenditures.xlsm
B131: Total | D131: =SUM(D124:D130) -> 0 | E131: 662929 | F131: =SUM(F124:F130) -> 662929 | G131: =SUM(G124:G130) -> 0 | H131: =SUM(H124:H130) -> 0 | I131: =SUM(I124:I130) -> 0 | J131: =IF(F131-I131=0,0,IF(F131-I131>0,TEXT(ABS(F131-I131),"$#,###")&" ▼",TEXT(ABS(F131-I131),"$#,###")&" ▲")) -> $662,929 ▼ | L131: =SUM(L124:L130) -> 661346 | M131: 0 | N131: 0 | O131: 0 | P131: 0 | Q131: 0 | R131: 0 | S131: =SUM(S124:S130) -> 661346
B133: Objectives | D133: MOE | E133: Consortium Allocations | F133: Total | G133: MOE | H133: Consortium Allocations | I133: Total | J133: + / - | L133: AEBG | M133: WIOA | N133: Adult Perkins | O133: CalWorks | P133: LCFF | Q133: CCD Apportionment | R133: Incarcerated Adults | S133: Total
A134: =$B$4 -> 25 Lassen | B134: 5.1a Obj. 3: Seamless Transition | D134: 0 | E134: 0 | F134: =SUM(D134:E134) -> 0 | G134: 0 | H134: 0 | I134: =SUM(G134:H134) -> 0 | J134: =IF(F134-I134=0,0,IF(F134-I134>0,TEXT(ABS(F134-I134),"$#,###")&" ▼",TEXT(ABS(F134-I134),"$#,###")&" ▲")) -> 0 | K134: Objectives | L134: 0 | M134: 0 | N134: 0 | O134: 0 | P134: 0 | Q134: 0 | R134: 0 | S134: =SUM(L134:R134) -> 0 | T134: =T130 -> Lassen Community College District | U134: =U130 -> 424_Lassen Community College District | V134: =V130 -> 25-Lassen_160822173811 | W134: =W130 -> All Schools Lassen Consortium Expenditures.xlsm
A135: =$B$4 -> 25 Lassen | B135: 5.1b Obj. 4: Gaps in Services | D135: 0 | E135: 662929 | F135: =SUM(D135:E135) -> 662929 | G135: 0 | H135: 0 | I135: =SUM(G135:H135) -> 0 | J135: =IF(F135-I135=0,0,IF(F135-I135>0,TEXT(ABS(F135-I135),"$#,###")&" ▼",TEXT(ABS(F135-I135),"$#,###")&" ▲")) -> $662,929 ▼ | K135: Objectives | L135: 661346 | M135: 0 | N135: 0 | O135: 0 | P135: 0 | Q135: 0 | R135: 0 | S135: =SUM(L135:R135) -> 661346 | T135: =T134 -> Lassen Community College District | U135: 424_Lassen Community College District | V135: 25-Lassen_160822173811 | W135: All Schools Lassen Consortium Expenditures.xlsm
A136: =$B$4 -> 25 Lassen | B136: 5.1c Obj. 5: Accelerated Learning | D136: 0 | E136: 0 | F136: 0 | G136: 0 | H136: 0 | I136: 0 | J136: 0 | K136: Objectives | L136: 0 | M136: 0 | N136: 0 | O136: 0 | P136: 0 | Q136: 0 | R136: 0 | S136: =SUM(L136:R136) -> 0 | T136: Lassen Community College District | U136: 424_Lassen Community College District | V136: 25-Lassen_160822173811 | W136: All Schools Lassen Consortium Expenditures.xlsm
A137: =$B$4 -> 25 Lassen | B137: 5.1d Obj. 6: Professional Development | D137: 0 | E137: 0 | F137: 0 | G137: 0 | H137: 0 | I137: 0 | J137: 0 | K137: Objectives | L137: 0 | M137: 0 | N137: 0 | O137: 0 | P137: 0 | Q137: 0 | R137: 0 | S137: =SUM(L137:R137) -> 0 | T137: Lassen Community College District | U137: 424_Lassen Community College District | V137: 25-Lassen_160822173811 | W137: All Schools Lassen Consortium Expenditures.xlsm
A138: =$B$4 -> 25 Lassen | B138: 5.1e Obj. 7: Leveraging Structures | D138: 0 | E138: 0 | F138: 0 | G138: 0 | H138: 0 | I138: 0 | J138: 0 | K138: Objectives | L138: 0 | M138: 0 | N138: 0 | O138: 0 | P138: 0 | Q138: 0 | R138: 0 | S138: =SUM(L138:R138) -> 0 | T138: Lassen Community College District | U138: 424_Lassen Community College District | V138: 25-Lassen_160822173811 | W138: All Schools Lassen Consortium Expenditures.xlsm
B139: Total | D139: =SUM(D134:D138) -> 0 | E139: 662929 | F139: =SUM(F134:F138) -> 662929 | G139: =SUM(G134:G138) -> 0 | H139: =SUM(H134:H138) -> 0 | I139: =SUM(I134:I138) -> 0 | J139: $662,929 ▼ | L139: =SUM(L134:L138) -> 661346 | M139: 0 | N139: 0 | O139: 0 | P139: 0 | Q139: 0 | R139: 0 | S139: =SUM(S134:S138) -> 661346
B141: Object Code | D141: MOE | E141: Consortium Allocations | F141: Total | G141: MOE | H141: Consortium Allocations | I141: Total | J141: + / -
A142: =$B$4 -> 25 Lassen | B142: 1000 Instructional Salaries | D142: 0 | F142: =SUM(D142:E142) -> 0 | G142: 0 | H142: 0 | I142: =SUM(G142:H142) -> 0 | J142: =IF(F142-I142=0,0,IF(F142-I142>0,TEXT(ABS(F142-I142),"$#,###")&" ▼",TEXT(ABS(F142-I142),"$#,###")&" ▲")) -> 0 | K142: Object Codes | T142: =T138 -> Lassen Community College District | U142: =U138 -> 424_Lassen Community College District | V142: =V138 -> 25-Lassen_160822173811 | W142: =W138 -> All Schools Lassen Consortium Expenditures.xlsm
A143: =$B$4 -> 25 Lassen | B143: 2000 NonInstructional Salaries | D143: 0 | E143: 52208 | F143: =SUM(D143:E143) -> 52208 | G143: 0 | H143: 32070 | I143: =SUM(G143:H143) -> 32070 | J143: =IF(F143-I143=0,0,IF(F143-I143>0,TEXT(ABS(F143-I143),"$#,###")&" ▼",TEXT(ABS(F143-I143),"$#,###")&" ▲")) -> $20,138 ▼ | K143: Object Codes | T143: =T142 -> Lassen Community College District | U143: 424_Lassen Community College District | V143: 25-Lassen_160822173811 | W143: All Schools Lassen Consortium Expenditures.xlsm
A144: =A143 -> 25 Lassen | B144: 3000 Employee Benefits | D144: 0 | E144: 30187 | F144: 30187 | G144: 0 | H144: 16066 | I144: 16066 | J144: $14,121 ▼ | K144: Object Codes | T144: Lassen Community College District | U144: 424_Lassen Community College District | V144: 25-Lassen_160822173811 | W144: All Schools Lassen Consortium Expenditures.xlsm
A145: 25 Lassen | B145: 4000 Supplies and Materials | D145: 0 | E145: 0 | F145: 0 | G145: 0 | H145: 0 | I145: 0 | J145: 0 | K145: Object Codes | T145: Lassen Community College District | U145: 424_Lassen Community College District | V145: 25-Lassen_160822173811 | W145: All Schools Lassen Consortium Expenditures.xlsm
A146: 25 Lassen | B146: 5000 Other Operating Expenses | D146: 0 | E146: 379169 | F146: 379169 | G146: 0 | H146: 114535 | I146: 114535 | J146: $264,634 ▼ | K146: Object Codes | T146: Lassen Community College District | U146: 424_Lassen Community College District | V146: 25-Lassen_160822173811 | W146: All Schools Lassen Consortium Expenditures.xlsm
A147: 25 Lassen | B147: 6000 Capital Outlay | D147: 0 | E147: 80000 | F147: 80000 | G147: 0 | H147: 0 | I147: 0 | J147: $80,000 ▼ | K147: Object Codes | T147: Lassen Community College District | U147: 424_Lassen Community College District | V147: 25-Lassen_160822173811 | W147: All Schools Lassen Consortium Expenditures.xlsm
A148: 25 Lassen | B148: 7000 Other Outgo | D148: 0 | E148: 0 | F148: 0 | G148: 0 | H148: 0 | I148: 0 | J148: 0 | K148: Object Codes | S148: Key | T148: Lassen Community College District | U148: 424_Lassen Community College District | V148: 25-Lassen_160822173811 | W148: All Schools Lassen Consortium Expenditures.xlsm
A149: 25 Lassen | B149: Indirect / Administration | D149: 0 | E149: 40000 | F149: 40000 | G149: 0 | H149: 0 | I149: 0 | J149: $40,000 ▼ | K149: Object Codes | S149: ▼ = Under | T149: Lassen Community College District | U149: 424_Lassen Community College District | V149: 25-Lassen_160822173811 | W149: All Schools Lassen Consortium Expenditures.xlsm
B150: Total | D150: =SUM(D142:D149) -> 0 | E150: 581564 | F150: 581564 | G150: 0 | H150: 162671 | I150: 162671 | J150: $418,893 ▼ | S150: ▲ = Over
Q152: PY 15-16 Budgeted | R152: PY 15-16 Spent | S152: PY 16-17 Planned
A153: 🔝 | B153: =IFERROR(VLOOKUP(4,Sheet1!F:G,2,FALSE),"") -> Lassen County Office of Education | O153: AEBG Funds | Q153: =R153 -> 0 | R153: =IFERROR(INDEX(Sheet1!H:H,MATCH(U161,Sheet1!E:E,0)),"") -> 0 | S153: =IFERROR(INDEX(Sheet1!J:J,MATCH(U161,Sheet1!E:E,0)),"") -> 0
O154: Program Areas | Q154: =IF(Q153=F168," - ",IF(Q153-F168>0,TEXT(Q153-F168,"$#,###")&" ▼",TEXT(ABS(Q153-F168),"$#,###")&" ▲")) -> - | R154: =IF(I168=R153," - ",IF(R153-I168>0,TEXT(R153-I168,"$#,###")&" ▼",TEXT(ABS(R153-I168),"$#,###")&" ▲")) -> - | S154: =IF(L168=S153," - ",IF(S153-L168>0,TEXT(S153-L168,"$#,###")&" ▼",TEXT(ABS(S153-L168),"$#,###")&" ▲")) -> -
C155: =IF(ISNA(Sheet1!B155),"Please select from the list of member agencies affiliated with the selected Consortium","") ->  | O155: Objectives | Q155: =IF(F176=Q153," - ",IF(Q153-F176>0,TEXT(Q153-F176,"$#,###")&" ▼",TEXT(ABS(Q153-F176),"$#,###")&" ▲")) -> - | R155: =IF(I176=R153," - ",IF(R153-I176>0,TEXT(R153-I176,"$#,###")&" ▼",TEXT(ABS(R153-I176),"$#,###")&" ▲")) -> - | S155: =IF(L176=S153," - ",IF(S153-L176>0,TEXT(S153-L176,"$#,###")&" ▼",TEXT(ABS(S153-L176),"$#,###")&" ▲")) -> -
O156: Object Codes | Q156: =IF(F187=Q153," - ",IF(Q153-F187>0,TEXT(Q153-F187,"$#,###")&" ▼",TEXT(ABS(Q153-F187),"$#,###")&" ▲")) -> - | R156: =IF(I187=R153," - ",IF(R153-I187>0,TEXT(R153-I187,"$#,###")&" ▼",TEXT(ABS(R153-I187),"$#,###")&" ▲")) -> -
D158: 2015 - 16 Expenditures | L158: 2016 - 17 Planned Expenditures
D159: Budgeted | G159: Spent | J159: + / -
B160: Program Areas | D160: MOE | E160: Consortium Allocations | F160: Total | G160: MOE | H160: Consortium Allocations | I160: Total | L160: AEBG | M160: WIOA | N160: Adult Perkins | O160: CalWorks | P160: LCFF | Q160: CCD Apportionment | R160: Incarcerated Adults | S160: Total
A161: =$B$4 -> 25 Lassen | B161: 3.1a Adult education (ABE, ASE, Basic Skills) | D161: 0 | E161: 0 | F161: =SUM(D161:E161) -> 0 | G161: 0 | H161: 0 | I161: =SUM(G161:H161) -> 0 | J161: =IF(F161-I161=0,0,IF(F161-I161>0,TEXT(ABS(F161-I161),"$#,###")&" ▼",TEXT(ABS(F161-I161),"$#,###")&" ▲")) -> 0 | K161: Program Areas | L161: 0 | M161: 0 | N161: 0 | O161: 0 | P161: 0 | Q161: 0 | R161: 0 | S161: =SUM(L161:R161) -> 0 | T161: =B153 -> Lassen County Office of Education | U161: =INDEX(Sheet1!E:E,MATCH($B$4&B153,Sheet1!D:D,0)) -> 287_Lassen County Office of Education | V161: =Sheet1!$B$8 -> 25-Lassen_160822173811 | W161: =Sheet1!$B$10 -> All Schools Lassen Consortium Expenditures.xlsm
A162: 25 Lassen | B162: 3.1b English as a second language | D162: 0 | E162: 0 | F162: =SUM(D162:E162) -> 0 | G162: 0 | H162: 0 | I162: =SUM(G162:H162) -> 0 | J162: =IF(F162-I162=0,0,IF(F162-I162>0,TEXT(ABS(F162-I162),"$#,###")&" ▼",TEXT(ABS(F162-I162),"$#,###")&" ▲")) -> 0 | K162: Program Areas | L162: 0 | M162: 0 | N162: 0 | O162: 0 | P162: 0 | Q162: 0 | R162: 0 | S162: 0 | T162: =T161 -> Lassen County Office of Education | U162: 287_Lassen County Office of Education | V162: =Sheet1!$B$8 -> 25-Lassen_160822173811 | W162: =Sheet1!$B$10 -> All Schools Lassen Consortium Expenditures.xlsm
A163: 25 Lassen | B163: 3.1c Pre-apprenticeship training | D163: 0 | E163: 0 | F163: 0 | G163: 0 | H163: 0 | I163: 0 | J163: 0 | K163: Program Areas | L163: 0 | M163: 0 | N163: 0 | O163: 0 | P163: 0 | Q163: 0 | R163: 0 | S163: 0 | T163: Lassen County Office of Education | U163: 287_Lassen County Office of Education | V163: =Sheet1!$B$8 -> 25-Lassen_160822173811 | W163: =Sheet1!$B$10 -> All Schools Lassen Consortium Expenditures.xlsm
A164: 25 Lassen | B164: 3.1d Career and technical training | D164: 0 | E164: 0 | F164: 0 | G164: 0 | H164: 0 | I164: 0 | J164: 0 | K164: Program Areas | L164: 0 | M164: 0 | N164: 0 | O164: 0 | P164: 0 | Q164: 0 | R164: 0 | S164: 0 | T164: Lassen County Office of Education | U164: 287_Lassen County Office of Education | V164: =Sheet1!$B$8 -> 25-Lassen_160822173811 | W164: =Sheet1!$B$10 -> All Schools Lassen Consortium Expenditures.xlsm
A165: 25 Lassen | B165: 3.1e Adults training to support child school success | D165: 0 | E165: 0 | F165: 0 | G165: 0 | H165: 0 | I165: 0 | J165: 0 | K165: Program Areas | L165: 0 | M165: 0 | N165: 0 | O165: 0 | P165: 0 | Q165: 0 | R165: 0 | S165: 0 | T165: Lassen County Office of Education | U165: 287_Lassen County Office of Education | V165: =Sheet1!$B$8 -> 25-Lassen_160822173811 | W165: =Sheet1!$B$10 -> All Schools Lassen Consortium Expenditures.xlsm
A166: 25 Lassen | B166: 3.1f Older adults in the workforce | D166: 0 | E166: 0 | F166: 0 | G166: 0 | H166: 0 | I166: 0 | J166: 0 | K166: Program Areas | L166: 0 | M166: 0 | N166: 0 | O166: 0 | P166: 0 | Q166: 0 | R166: 0 | S166: 0 | T166: Lassen County Office of Education | U166: 287_Lassen County Office of Education | V166: =Sheet1!$B$8 -> 25-Lassen_160822173811 | W166: =Sheet1!$B$10 -> All Schools Lassen Consortium Expenditures.xlsm
A167: 25 Lassen | B167: 3.1g Services to adults with disabilities | D167: 0 | E167: 0 | F167: 0 | G167: 0 | H167: 0 | I167: 0 | J167: 0 | K167: Program Areas | L167: 0 | M167: 0 | N167: 0 | O167: 0 | P167: 0 | Q167: 0 | R167: 0 | S167: 0 | T167: Lassen County Office of Education | U167: 287_Lassen County Office of Education | V167: =Sheet1!$B$8 -> 25-Lassen_160822173811 | W167: =Sheet1!$B$10 -> All Schools Lassen Consortium Expenditures.xlsm
B168: Total | D168: =SUM(D161:D167) -> 0 | E168: 0 | F168: =SUM(F161:F167) -> 0 | G168: =SUM(G161:G167) -> 0 | H168: =SUM(H161:H167) -> 0 | I168: =SUM(I161:I167) -> 0 | J168: =IF(F168-I168=0,0,IF(F168-I168>0,TEXT(ABS(F168-I168),"$#,###")&" ▼",TEXT(ABS(F168-I168),"$#,###")&" ▲")) -> 0 | L168: =SUM(L161:L167) -> 0 | M168: 0 | N168: 0 | O168: 0 | P168: 0 | Q168: 0 | R168: 0 | S168: =SUM(S161:S167) -> 0
B170: Objectives | D170: MOE | E170: Consortium Allocations | F170: Total | G170: MOE | H170: Consortium Allocations | I170: Total | J170: + / - | L170: AEBG | M170: WIOA | N170: Adult Perkins | O170: CalWorks | P170: LCFF | Q170: CCD Apportionment | R170: Incarcerated Adults | S170: Total
A171: =$B$4 -> 25 Lassen | B171: 5.1a Obj. 3: Seamless Transition | D171: 0 | E171: 0 | F171: =SUM(D171:E171) -> 0 | G171: 0 | H171: 0 | I171: =SUM(G171:H171) -> 0 | J171: =IF(F171-I171=0,0,IF(F171-I171>0,TEXT(ABS(F171-I171),"$#,###")&" ▼",TEXT(ABS(F171-I171),"$#,###")&" ▲")) -> 0 | K171: Objectives | L171: 0 | M171: 0 | N171: 0 | O171: 0 | P171: 0 | Q171: 0 | R171: 0 | S171: =SUM(L171:R171) -> 0 | T171: =T167 -> Lassen County Office of Education | U171: =U167 -> 287_Lassen County Office of Education | V171: =V167 -> 25-Lassen_160822173811 | W171: =W167 -> All Schools Lassen Consortium Expenditures.xlsm
A172: =$B$4 -> 25 Lassen | B172: 5.1b Obj. 4: Gaps in Services | D172: 0 | E172: 0 | F172: =SUM(D172:E172) -> 0 | G172: 0 | H172: 0 | I172: =SUM(G172:H172) -> 0 | J172: =IF(F172-I172=0,0,IF(F172-I172>0,TEXT(ABS(F172-I172),"$#,###")&" ▼",TEXT(ABS(F172-I172),"$#,###")&" ▲")) -> 0 | K172: Objectives | L172: 0 | M172: 0 | N172: 0 | O172: 0 | P172: 0 | Q172: 0 | R172: 0 | S172: =SUM(L172:R172) -> 0 | T172: =T171 -> Lassen County Office of Education | U172: 287_Lassen County Office of Education | V172: 25-Lassen_160822173811 | W172: All Schools Lassen Consortium Expenditures.xlsm
A173: =$B$4 -> 25 Lassen | B173: 5.1c Obj. 5: Accelerated Learning | D173: 0 | E173: 0 | F173: 0 | G173: 0 | H173: 0 | I173: 0 | J173: 0 | K173: Objectives | L173: 0 | M173: 0 | N173: 0 | O173: 0 | P173: 0 | Q173: 0 | R173: 0 | S173: =SUM(L173:R173) -> 0 | T173: Lassen County Office of Education | U173: 287_Lassen County Office of Education | V173: 25-Lassen_160822173811 | W173: All Schools Lassen Consortium Expenditures.xlsm
A174: =$B$4 -> 25 Lassen | B174: 5.1d Obj. 6: Professional Development | D174: 0 | E174: 0 | F174: 0 | G174: 0 | H174: 0 | I174: 0 | J174: 0 | K174: Objectives | L174: 0 | M174: 0 | N174: 0 | O174: 0 | P174: 0 | Q174: 0 | R174: 0 | S174: =SUM(L174:R174) -> 0 | T174: Lassen County Office of Education | U174: 287_Lassen County Office of Education | V174: 25-Lassen_160822173811 | W174: All Schools Lassen Consortium Expenditures.xlsm
A175: =$B$4 -> 25 Lassen | B175: 5.1e Obj. 7: Leveraging Structures | D175: 0 | E175: 0 | F175: 0 | G175: 0 | H175: 0 | I175: 0 | J175: 0 | K175: Objectives | L175: 0 | M175: 0 | N175: 0 | O175: 0 | P175: 0 | Q175: 0 | R175: 0 | S175: =SUM(L175:R175) -> 0 | T175: Lassen County Office of Education | U175: 287_Lassen County Office of Education | V175: 25-Lassen_160822173811 | W175: All Schools Lassen Consortium Expenditures.xlsm
B176: Total | D176: =SUM(D171:D175) -> 0 | E176: 0 | F176: =SUM(F171:F175) -> 0 | G176: =SUM(G171:G175) -> 0 | H176: =SUM(H171:H175) -> 0 | I176: =SUM(I171:I175) -> 0 | J176: 0 | L176: =SUM(L171:L175) -> 0 | M176: 0 | N176: 0 | O176: 0 | P176: 0 | Q176: 0 | R176: 0 | S176: =SUM(S171:S175) -> 0
B178: Object Code | D178: MOE | E178: Consortium Allocations | F178: Total | G178: MOE | H178: Consortium Allocations | I178: Total | J178: + / -
A179: =$B$4 -> 25 Lassen | B179: 1000 Instructional Salaries | D179: 0 | E179: 0 | F179: =SUM(D179:E179) -> 0 | G179: 0 | H179: 0 | I179: =SUM(G179:H179) -> 0 | J179: =IF(F179-I179=0,0,IF(F179-I179>0,TEXT(ABS(F179-I179),"$#,###")&" ▼",TEXT(ABS(F179-I179),"$#,###")&" ▲")) -> 0 | K179: Object Codes | T179: =T175 -> Lassen County Office of Education | U179: =U175 -> 287_Lassen County Office of Education | V179: =V175 -> 25-Lassen_160822173811 | W179: =W175 -> All Schools Lassen Consortium Expenditures.xlsm
A180: =$B$4 -> 25 Lassen | B180: 2000 NonInstructional Salaries | D180: 0 | E180: 0 | F180: =SUM(D180:E180) -> 0 | G180: 0 | H180: 0 | I180: =SUM(G180:H180) -> 0 | J180: =IF(F180-I180=0,0,IF(F180-I180>0,TEXT(ABS(F180-I180),"$#,###")&" ▼",TEXT(ABS(F180-I180),"$#,###")&" ▲")) -> 0 | K180: Object Codes | T180: =T179 -> Lassen County Office of Education | U180: 287_Lassen County Office of Education | V180: 25-Lassen_160822173811 | W180: All Schools Lassen Consortium Expenditures.xlsm
A181: =A180 -> 25 Lassen | B181: 3000 Employee Benefits | D181: 0 | E181: 0 | F181: 0 | G181: 0 | H181: 0 | I181: 0 | J181: 0 | K181: Object Codes | T181: Lassen County Office of Education | U181: 287_Lassen County Office of Education | V181: 25-Lassen_160822173811 | W181: All Schools Lassen Consortium Expenditures.xlsm
A182: 25 Lassen | B182: 4000 Supplies and Materials | D182: 0 | E182: 0 | F182: 0 | G182: 0 | H182: 0 | I182: 0 | J182: 0 | K182: Object Codes | T182: Lassen County Office of Education | U182: 287_Lassen County Office of Education | V182: 25-Lassen_160822173811 | W182: All Schools Lassen Consortium Expenditures.xlsm
A183: 25 Lassen | B183: 5000 Other Operating Expenses | D183: 0 | E183: 0 | F183: 0 | G183: 0 | H183: 0 | I183: 0 | J183: 0 | K183: Object Codes | T183: Lassen County Office of Education | U183: 287_Lassen County Office of Education | V183: 25-Lassen_160822173811 | W183: All Schools Lassen Consortium Expenditures.xlsm
A184: 25 Lassen | B184: 6000 Capital Outlay | D184: 0 | E184: 0 | F184: 0 | G184: 0 | H184: 0 | I184: 0 | J184: 0 | K184: Object Codes | T184: Lassen County Office of Education | U184: 287_Lassen County Office of Education | V184: 25-Lassen_160822173811 | W184: All Schools Lassen Consortium Expenditures.xlsm
A185: 25 Lassen | B185: 7000 Other Outgo | D185: 0 | E185: 0 | F185: 0 | G185: 0 | H185: 0 | I185: 0 | J185: 0 | K185: Object Codes | S185: Key | T185: Lassen County Office of Education | U185: 287_Lassen County Office of Education | V185: 25-Lassen_160822173811 | W185: All Schools Lassen Consortium Expenditures.xlsm
A186: 25 Lassen | B186: Indirect / Administration | D186: 0 | E186: 0 | F186: 0 | G186: 0 | H186: 0 | I186: 0 | J186: 0 | K186: Object Codes | S186: ▼ = Under | T186: Lassen County Office of Education | U186: 287_Lassen County Office of Education | V186: 25-Lassen_160822173811 | W186: All Schools Lassen Consortium Expenditures.xlsm
B187: Total | D187: =SUM(D179:D186) -> 0 | E187: 0 | F187: 0 | G187: 0 | H187: 0 | I187: 0 | J187: 0 | S187: ▲ = Over
Q190: PY 15-16 Budgeted | R190: PY 15-16 Spent | S190: PY 16-17 Planned
A191: 🔝 | B191: =IFERROR(VLOOKUP(5,Sheet1!F:G,2,FALSE),"") -> Lassen Union High School District | O191: AEBG Funds | Q191: =R191 -> 24941 | R191: =IFERROR(INDEX(Sheet1!H:H,MATCH(U199,Sheet1!E:E,0)),"") -> 24941 | S191: =IFERROR(INDEX(Sheet1!J:J,MATCH(U199,Sheet1!E:E,0)),"") -> 24941
O192: Program Areas | Q192: =IF(Q191=F206," - ",IF(Q191-F206>0,TEXT(Q191-F206,"$#,###")&" ▼",TEXT(ABS(Q191-F206),"$#,###")&" ▲")) -> - | R192: =IF(I206=R191," - ",IF(R191-I206>0,TEXT(R191-I206,"$#,###")&" ▼",TEXT(ABS(R191-I206),"$#,###")&" ▲")) -> - | S192: =IF(L206=S191," - ",IF(S191-L206>0,TEXT(S191-L206,"$#,###")&" ▼",TEXT(ABS(S191-L206),"$#,###")&" ▲")) -> -
C193: =IF(ISNA(Sheet1!B193),"Please select from the list of member agencies affiliated with the selected Consortium","") ->  | O193: Objectives | Q193: =IF(F214=Q191," - ",IF(Q191-F214>0,TEXT(Q191-F214,"$#,###")&" ▼",TEXT(ABS(Q191-F214),"$#,###")&" ▲")) -> - | R193: =IF(I214=R191," - ",IF(R191-I214>0,TEXT(R191-I214,"$#,###")&" ▼",TEXT(ABS(R191-I214),"$#,###")&" ▲")) -> - | S193: =IF(L214=S191," - ",IF(S191-L214>0,TEXT(S191-L214,"$#,###")&" ▼",TEXT(ABS(S191-L214),"$#,###")&" ▲")) -> -
O194: Object Codes | Q194: =IF(F225=Q191," - ",IF(Q191-F225>0,TEXT(Q191-F225,"$#,###")&" ▼",TEXT(ABS(Q191-F225),"$#,###")&" ▲")) -> $24,941 ▼ | R194: =IF(I225=R191," - ",IF(R191-I225>0,TEXT(R191-I225,"$#,###")&" ▼",TEXT(ABS(R191-I225),"$#,###")&" ▲")) -> -
D196: 2015 - 16 Expenditures | L196: 2016 - 17 Planned Expenditures
D197: Budgeted | G197: Spent | J197: + / -
B198: Program Areas | D198: MOE | E198: Consortium Allocations | F198: Total | G198: MOE | H198: Consortium Allocations | I198: Total | L198: AEBG | M198: WIOA | N198: Adult Perkins | O198: CalWorks | P198: LCFF | Q198: CCD Apportionment | R198: Incarcerated Adults | S198: Total
A199: =$B$4 -> 25 Lassen | B199: 3.1a Adult education (ABE, ASE, Basic Skills) | D199: 24941 | E199: 0 | F199: =SUM(D199:E199) -> 24941 | G199: 24941 | H199: 0 | I199: =SUM(G199:H199) -> 24941 | J199: =IF(F199-I199=0,0,IF(F199-I199>0,TEXT(ABS(F199-I199),"$#,###")&" ▼",TEXT(ABS(F199-I199),"$#,###")&" ▲")) -> 0 | K199: Program Areas | L199: 24941 | M199: 0 | N199: 0 | O199: 0 | P199: 0 | Q199: 0 | R199: 0 | S199: =SUM(L199:R199) -> 24941 | T199: =B191 -> Lassen Union High School District | U199: =INDEX(Sheet1!E:E,MATCH($B$4&B191,Sheet1!D:D,0)) -> 285_Lassen Union High School District | V199: =Sheet1!$B$8 -> 25-Lassen_160822173811 | W199: =Sheet1!$B$10 -> All Schools Lassen Consortium Expenditures.xlsm
A200: 25 Lassen | B200: 3.1b English as a second language | D200: 0 | E200: 0 | F200: =SUM(D200:E200) -> 0 | G200: 0 | H200: 0 | I200: =SUM(G200:H200) -> 0 | J200: =IF(F200-I200=0,0,IF(F200-I200>0,TEXT(ABS(F200-I200),"$#,###")&" ▼",TEXT(ABS(F200-I200),"$#,###")&" ▲")) -> 0 | K200: Program Areas | L200: 0 | M200: 0 | N200: 0 | O200: 0 | P200: 0 | Q200: 0 | R200: 0 | S200: 0 | T200: =T199 -> Lassen Union High School District | U200: 285_Lassen Union High School District | V200: =Sheet1!$B$8 -> 25-Lassen_160822173811 | W200: =Sheet1!$B$10 -> All Schools Lassen Consortium Expenditures.xlsm
A201: 25 Lassen | B201: 3.1c Pre-apprenticeship training | D201: 0 | E201: 0 | F201: 0 | G201: 0 | H201: 0 | I201: 0 | J201: 0 | K201: Program Areas | L201: 0 | M201: 0 | N201: 0 | O201: 0 | P201: 0 | Q201: 0 | R201: 0 | S201: 0 | T201: Lassen Union High School District | U201: 285_Lassen Union High School District | V201: =Sheet1!$B$8 -> 25-Lassen_160822173811 | W201: =Sheet1!$B$10 -> All Schools Lassen Consortium Expenditures.xlsm
A202: 25 Lassen | B202: 3.1d Career and technical training | D202: 0 | E202: 0 | F202: 0 | G202: 0 | H202: 0 | I202: 0 | J202: 0 | K202: Program Areas | L202: 0 | M202: 0 | N202: 0 | O202: 0 | P202: 0 | Q202: 0 | R202: 0 | S202: 0 | T202: Lassen Union High School District | U202: 285_Lassen Union High School District | V202: =Sheet1!$B$8 -> 25-Lassen_160822173811 | W202: =Sheet1!$B$10 -> All Schools Lassen Consortium Expenditures.xlsm
A203: 25 Lassen | B203: 3.1e Adults training to support child school success | D203: 0 | E203: 0 | F203: 0 | G203: 0 | H203: 0 | I203: 0 | J203: 0 | K203: Program Areas | L203: 0 | M203: 0 | N203: 0 | O203: 0 | P203: 0 | Q203: 0 | R203: 0 | S203: 0 | T203: Lassen Union High School District | U203: 285_Lassen Union High School District | V203: =Sheet1!$B$8 -> 25-Lassen_160822173811 | W203: =Sheet1!$B$10 -> All Schools Lassen Consortium Expenditures.xlsm
A204: 25 Lassen | B204: 3.1f Older adults in the workforce | D204: 0 | E204: 0 | F204: 0 | G204: 0 | H204: 0 | I204: 0 | J204: 0 | K204: Program Areas | L204: 0 | M204: 0 | N204: 0 | O204: 0 | P204: 0 | Q204: 0 | R204: 0 | S204: 0 | T204: Lassen Union High School District | U204: 285_Lassen Union High School District | V204: =Sheet1!$B$8 -> 25-Lassen_160822173811 | W204: =Sheet1!$B$10 -> All Schools Lassen Consortium Expenditures.xlsm
A205: 25 Lassen | B205: 3.1g Services to adults with disabilities | D205: 0 | E205: 0 | F205: 0 | G205: 0 | H205: 0 | I205: 0 | J205: 0 | K205: Program Areas | L205: 0 | M205: 0 | N205: 0 | O205: 0 | P205: 0 | Q205: 0 | R205: 0 | S205: 0 | T205: Lassen Union High School District | U205: 285_Lassen Union High School District | V205: =Sheet1!$B$8 -> 25-Lassen_160822173811 | W205: =Sheet1!$B$10 -> All Schools Lassen Consortium Expenditures.xlsm
B206: Total | D206: =SUM(D199:D205) -> 24941 | E206: 0 | F206: =SUM(F199:F205) -> 24941 | G206: =SUM(G199:G205) -> 24941 | H206: =SUM(H199:H205) -> 0 | I206: =SUM(I199:I205) -> 24941 | J206: =IF(F206-I206=0,0,IF(F206-I206>0,TEXT(ABS(F206-I206),"$#,###")&" ▼",TEXT(ABS(F206-I206),"$#,###")&" ▲")) -> 0 | L206: =SUM(L199:L205) -> 24941 | M206: 0 | N206: 0 | O206: 0 | P206: 0 | Q206: 0 | R206: 0 | S206: =SUM(S199:S205) -> 24941
B208: Objectives | D208: MOE | E208: Consortium Allocations | F208: Total | G208: MOE | H208: Consortium Allocations | I208: Total | J208: + / - | L208: AEBG | M208: WIOA | N208: Adult Perkins | O208: CalWorks | P208: LCFF | Q208: CCD Apportionment | R208: Incarcerated Adults | S208: Total
A209: =$B$4 -> 25 Lassen | B209: 5.1a Obj. 3: Seamless Transition | D209: 0 | E209: 0 | F209: =SUM(D209:E209) -> 0 | G209: 0 | H209: 0 | I209: =SUM(G209:H209) -> 0 | J209: =IF(F209-I209=0,0,IF(F209-I209>0,TEXT(ABS(F209-I209),"$#,###")&" ▼",TEXT(ABS(F209-I209),"$#,###")&" ▲")) -> 0 | K209: Objectives | L209: 0 | M209: 0 | N209: 0 | O209: 0 | P209: 0 | Q209: 0 | R209: 0 | S209: =SUM(L209:R209) -> 0 | T209: =T205 -> Lassen Union High School District | U209: =U205 -> 285_Lassen Union High School District | V209: =V205 -> 25-Lassen_160822173811 | W209: =W205 -> All Schools Lassen Consortium Expenditures.xlsm
A210: =$B$4 -> 25 Lassen | B210: 5.1b Obj. 4: Gaps in Services | D210: 24941 | E210: 0 | F210: =SUM(D210:E210) -> 24941 | G210: 24941 | H210: 0 | I210: =SUM(G210:H210) -> 24941 | J210: =IF(F210-I210=0,0,IF(F210-I210>0,TEXT(ABS(F210-I210),"$#,###")&" ▼",TEXT(ABS(F210-I210),"$#,###")&" ▲")) -> 0 | K210: Objectives | L210: 24941 | M210: 0 | N210: 0 | O210: 0 | P210: 0 | Q210: 0 | R210: 0 | S210: =SUM(L210:R210) -> 24941 | T210: =T209 -> Lassen Union High School District | U210: 285_Lassen Union High School District | V210: 25-Lassen_160822173811 | W210: All Schools Lassen Consortium Expenditures.xlsm
A211: =$B$4 -> 25 Lassen | B211: 5.1c Obj. 5: Accelerated Learning | D211: 0 | E211: 0 | F211: 0 | G211: 0 | H211: 0 | I211: 0 | J211: 0 | K211: Objectives | L211: 0 | M211: 0 | N211: 0 | O211: 0 | P211: 0 | Q211: 0 | R211: 0 | S211: =SUM(L211:R211) -> 0 | T211: Lassen Union High School District | U211: 285_Lassen Union High School District | V211: 25-Lassen_160822173811 | W211: All Schools Lassen Consortium Expenditures.xlsm
A212: =$B$4 -> 25 Lassen | B212: 5.1d Obj. 6: Professional Development | D212: 0 | E212: 0 | F212: 0 | G212: 0 | H212: 0 | I212: 0 | J212: 0 | K212: Objectives | L212: 0 | M212: 0 | N212: 0 | O212: 0 | P212: 0 | Q212: 0 | R212: 0 | S212: =SUM(L212:R212) -> 0 | T212: Lassen Union High School District | U212: 285_Lassen Union High School District | V212: 25-Lassen_160822173811 | W212: All Schools Lassen Consortium Expenditures.xlsm
A213: =$B$4 -> 25 Lassen | B213: 5.1e Obj. 7: Leveraging Structures | D213: 0 | E213: 0 | F213: 0 | G213: 0 | H213: 0 | I213: 0 | J213: 0 | K213: Objectives | L213: 0 | M213: 0 | N213: 0 | O213: 0 | P213: 0 | Q213: 0 | R213: 0 | S213: =SUM(L213:R213) -> 0 | T213: Lassen Union High School District | U213: 285_Lassen Union High School District | V213: 25-Lassen_160822173811 | W213: All Schools Lassen Consortium Expenditures.xlsm
B214: Total | D214: =SUM(D209:D213) -> 24941 | E214: 0 | F214: =SUM(F209:F213) -> 24941 | G214: =SUM(G209:G213) -> 24941 | H214: =SUM(H209:H213) -> 0 | I214: =SUM(I209:I213) -> 24941 | J214: 0 | L214: =SUM(L209:L213) -> 24941 | M214: 0 | N214: 0 | O214: 0 | P214: 0 | Q214: 0 | R214: 0 | S214: =SUM(S209:S213) -> 24941
B216: Object Code | D216: MOE | E216: Consortium Allocations | F216: Total | G216: MOE | H216: Consortium Allocations | I216: Total | J216: + / -
A217: =$B$4 -> 25 Lassen | B217: 1000 Instructional Salaries | D217: 0 | E217: 0 | F217: =SUM(D217:E217) -> 0 | G217: 3211 | H217: 0 | I217: =SUM(G217:H217) -> 3211 | J217: =IF(F217-I217=0,0,IF(F217-I217>0,TEXT(ABS(F217-I217),"$#,###")&" ▼",TEXT(ABS(F217-I217),"$#,###")&" ▲")) -> $3,211 ▲ | K217: Object Codes | T217: =T213 -> Lassen Union High School District | U217: =U213 -> 285_Lassen Union High School District | V217: =V213 -> 25-Lassen_160822173811 | W217: =W213 -> All Schools Lassen Consortium Expenditures.xlsm
A218: =$B$4 -> 25 Lassen | B218: 2000 NonInstructional Salaries | D218: 0 | E218: 0 | F218: =SUM(D218:E218) -> 0 | G218: 5302 | H218: 0 | I218: =SUM(G218:H218) -> 5302 | J218: =IF(F218-I218=0,0,IF(F218-I218>0,TEXT(ABS(F218-I218),"$#,###")&" ▼",TEXT(ABS(F218-I218),"$#,###")&" ▲")) -> $5,302 ▲ | K218: Object Codes | T218: =T217 -> Lassen Union High School District | U218: 285_Lassen Union High School District | V218: 25-Lassen_160822173811 | W218: All Schools Lassen Consortium Expenditures.xlsm
A219: =A218 -> 25 Lassen | B219: 3000 Employee Benefits | D219: 0 | E219: 0 | F219: 0 | G219: 2929 | H219: 0 | I219: 2929 | J219: $2,929 ▲ | K219: Object Codes | T219: Lassen Union High School District | U219: 285_Lassen Union High School District | V219: 25-Lassen_160822173811 | W219: All Schools Lassen Consortium Expenditures.xlsm
A220: 25 Lassen | B220: 4000 Supplies and Materials | D220: 0 | E220: 0 | F220: 0 | G220: 1722 | H220: 0 | I220: 1722 | J220: $1,722 ▲ | K220: Object Codes | T220: Lassen Union High School District | U220: 285_Lassen Union High School District | V220: 25-Lassen_160822173811 | W220: All Schools Lassen Consortium Expenditures.xlsm
A221: 25 Lassen | B221: 5000 Other Operating Expenses | D221: 0 | E221: 0 | F221: 0 | G221: 9350 | H221: 0 | I221: 9350 | J221: $9,350 ▲ | K221: Object Codes | T221: Lassen Union High School District | U221: 285_Lassen Union High School District | V221: 25-Lassen_160822173811 | W221: All Schools Lassen Consortium Expenditures.xlsm
A222: 25 Lassen | B222: 6000 Capital Outlay | D222: 0 | E222: 0 | F222: 0 | G222: 0 | H222: 0 | I222: 0 | J222: 0 | K222: Object Codes | T222: Lassen Union High School District | U222: 285_Lassen Union High School District | V222: 25-Lassen_160822173811 | W222: All Schools Lassen Consortium Expenditures.xlsm
A223: 25 Lassen | B223: 7000 Other Outgo | D223: 0 | E223: 0 | F223: 0 | G223: 0 | H223: 0 | I223: 0 | J223: 0 | K223: Object Codes | S223: Key | T223: Lassen Union High School District | U223: 285_Lassen Union High School District | V223: 25-Lassen_160822173811 | W223: All Schools Lassen Consortium Expenditures.xlsm
A224: 25 Lassen | B224: Indirect / Administration | D224: 0 | E224: 0 | F224: 0 | G224: 2427 | H224: 0 | I224: 2427 | J224: $2,427 ▲ | K224: Object Codes | S224: ▼ = Under | T224: Lassen Union High School District | U224: 285_Lassen Union High School District | V224: 25-Lassen_160822173811 | W224: All Schools Lassen Consortium Expenditures.xlsm
B225: Total | D225: =SUM(D217:D224) -> 0 | E225: 0 | F225: 0 | G225: 24941 | H225: 0 | I225: 24941 | J225: $24,941 ▲ | S225: ▲ = Over
... 495 more rows
